Body,Body name,Date,Transaction number,Amount,Non recoverable VAT included in amount,Supplier name,Supplier ID,Expense area,Fund type,Expense type,Category description,
http://thanet.gov.uk/supplierspend,Thanet District Council,06/05/2015,384128,378.50,,4imprint Direct Ltd,4IM001,Community Services,Revenue,"Print, Stat And Gen Off Exps",Facilities And Mangement Serv,
http://thanet.gov.uk/supplierspend,Thanet District Council,06/05/2015,383581,15874.56,,Albion Fencing&Construction Kent Ltd,ALB005,Operational Services,Revenue,"Repairs,  Alter & Mtce - Build",Building Construction Material,
http://thanet.gov.uk/supplierspend,Thanet District Council,06/05/2015,384098,503.19,,Allstar Business Solutions Ltd,ALL038,Operational Services,Revenue,Direct Transport Costs,Vehicle Management,
http://thanet.gov.uk/supplierspend,Thanet District Council,06/05/2015,383995,6451.00,,Amicushorizon Ltd S.E. Consortium,AMI004,Community Services,Revenue,Grants & Subscriptions,Building Construction Material,
http://thanet.gov.uk/supplierspend,Thanet District Council,06/05/2015,383052,10045.68,,Ass Of Electoral Administrators,AEA001,Corporate Resources and S151,Revenue,Services,Human Resources,
http://thanet.gov.uk/supplierspend,Thanet District Council,06/05/2015,384020,63607.57,,British Telecommunications Plc,BTE005,Operational Services,Revenue,Communications & Computing,Ict,
http://thanet.gov.uk/supplierspend,Thanet District Council,06/05/2015,382767,250.00,,Canterbury City Council,CAN004,Operational Services,Revenue,"Repairs,  Alter & Mtce - Build",Various Cats-Public Sector,
http://thanet.gov.uk/supplierspend,Thanet District Council,06/05/2015,383679,48394.83,,Canterbury City Council,CAN004,East Kent Shared Services,Revenue,Grants & Subscriptions,Various Cats-Public Sector,
http://thanet.gov.uk/supplierspend,Thanet District Council,06/05/2015,383681,60627.40,,Canterbury City Council,CAN004,East Kent Shared Services,Revenue,Grants & Subscriptions,Various Cats-Public Sector,
http://thanet.gov.uk/supplierspend,Thanet District Council,06/05/2015,383623,1415.00,,Cipfa Business Ltd,CIP008,Corporate Resources and S151,Revenue,"Print, Stat And Gen Off Exps",Financial Services,
http://thanet.gov.uk/supplierspend,Thanet District Council,06/05/2015,383230,3900.00,,Civica Uk Ltd,CIV003,East Kent Shared Services,Revenue,Expenses,Ict,
http://thanet.gov.uk/supplierspend,Thanet District Council,06/05/2015,383447,747.92,,Civica Uk Ltd,CIV003,East Kent Shared Services,Revenue,Communications & Computing,Ict,
http://thanet.gov.uk/supplierspend,Thanet District Council,06/05/2015,383665,2000.00,,Civica Uk Ltd,CIV003,East Kent Shared Services,Revenue,Expenses,Ict,
http://thanet.gov.uk/supplierspend,Thanet District Council,06/05/2015,383528,324.86,,Computerland Uk Limited,COM045,East Kent Shared Services,Revenue,Communications & Computing,Ict,
http://thanet.gov.uk/supplierspend,Thanet District Council,06/05/2015,383528,92.68,,Computerland Uk Limited,COM045,East Kent Shared Services,Revenue,"Equip, Furniture And Materials",Ict,
http://thanet.gov.uk/supplierspend,Thanet District Council,06/05/2015,384120,1900.00,,Dolphin Lifts Kent,DOL003,Corporate Resources and S151,Balance Sheet,Capital Exp-Non Council Assets,Grants,
http://thanet.gov.uk/supplierspend,Thanet District Council,06/05/2015,383524,260.00,,Dribbly Drops Plumbing Services,DRI003,Corporate Resources and S151,Balance Sheet,Repairs And Mtce Holding A/C,Building Construction Material,
http://thanet.gov.uk/supplierspend,Thanet District Council,06/05/2015,384116,805.84,,Family Mosaic Housing,FAM001,Corporate Resources and S151,Balance Sheet,Capital Exp-Non Council Assets,Housing Management,
http://thanet.gov.uk/supplierspend,Thanet District Council,06/05/2015,384118,1336.84,,Family Mosaic Housing,FAM001,Corporate Resources and S151,Balance Sheet,Capital Exp-Non Council Assets,Housing Management,
http://thanet.gov.uk/supplierspend,Thanet District Council,06/05/2015,384123,332.80,,Family Mosaic Housing,FAM001,Corporate Resources and S151,Balance Sheet,Capital Exp-Non Council Assets,Housing Management,
http://thanet.gov.uk/supplierspend,Thanet District Council,06/05/2015,383670,2830.00,,Gerlack & Thorne Ltd,GER001,Community Services,Revenue,"Repairs,  Alter & Mtce - Build",Construction-Repair And Maint,
http://thanet.gov.uk/supplierspend,Thanet District Council,06/05/2015,383671,14800.00,,Gerlack & Thorne Ltd,GER001,Operational Services,Revenue,Services,Construction-Repair And Maint,
http://thanet.gov.uk/supplierspend,Thanet District Council,06/05/2015,383580,756.70,,Graffiti Removal Ltd,GRA039,Operational Services,Revenue,"Equip, Furniture And Materials",Cleaning And Janitorial,
http://thanet.gov.uk/supplierspend,Thanet District Council,06/05/2015,383504,770.00,,Gulliver'S Truck Hire Limited,GUL001,Operational Services,Revenue,Cont Hire & Operating Lease,Vehicle Management,
http://thanet.gov.uk/supplierspend,Thanet District Council,06/05/2015,382787,9726.24,,Hr Go Recruitment Ltd,HRG002,Operational Services,Revenue,Agency Staff,Human Resources,
http://thanet.gov.uk/supplierspend,Thanet District Council,06/05/2015,382789,5066.59,,Hr Go Recruitment Ltd,HRG002,Operational Services,Revenue,Agency Staff,Human Resources,
http://thanet.gov.uk/supplierspend,Thanet District Council,06/05/2015,382792,2976.60,,Hr Go Recruitment Ltd,HRG002,Operational Services,Revenue,Agency Staff,Human Resources,
http://thanet.gov.uk/supplierspend,Thanet District Council,06/05/2015,382795,581.26,,Hr Go Recruitment Ltd,HRG002,Operational Services,Revenue,Agency Staff,Human Resources,
http://thanet.gov.uk/supplierspend,Thanet District Council,06/05/2015,383169,10018.71,,Hr Go Recruitment Ltd,HRG002,Operational Services,Revenue,Agency Staff,Human Resources,
http://thanet.gov.uk/supplierspend,Thanet District Council,06/05/2015,383170,4452.64,,Hr Go Recruitment Ltd,HRG002,Operational Services,Revenue,Agency Staff,Human Resources,
http://thanet.gov.uk/supplierspend,Thanet District Council,06/05/2015,383172,1571.15,,Hr Go Recruitment Ltd,HRG002,Operational Services,Revenue,Agency Staff,Human Resources,
http://thanet.gov.uk/supplierspend,Thanet District Council,06/05/2015,383593,309.40,,Hr Go Recruitment Ltd,HRG002,Community Services,Revenue,Agency Staff,Human Resources,
http://thanet.gov.uk/supplierspend,Thanet District Council,06/05/2015,383594,672.00,,Hr Go Recruitment Ltd,HRG002,Operational Services,Revenue,Agency Staff,Human Resources,
http://thanet.gov.uk/supplierspend,Thanet District Council,06/05/2015,383633,1550.23,,Hr Go Recruitment Ltd,HRG002,Operational Services,Revenue,Agency Staff,Human Resources,
http://thanet.gov.uk/supplierspend,Thanet District Council,06/05/2015,383634,526.87,,Hr Go Recruitment Ltd,HRG002,Operational Services,Revenue,Agency Staff,Human Resources,
http://thanet.gov.uk/supplierspend,Thanet District Council,06/05/2015,383635,851.74,,Hr Go Recruitment Ltd,HRG002,Operational Services,Revenue,Agency Staff,Human Resources,
http://thanet.gov.uk/supplierspend,Thanet District Council,06/05/2015,383051,484.25,,Hydraulic & Engineering Servs Ltd,HYD011,Operational Services,Revenue,"Repairs,  Alter & Mtce - Build",Vehicle Management,
http://thanet.gov.uk/supplierspend,Thanet District Council,06/05/2015,383521,22387.43,,Imperial Civil Enforcement Sols Ltd,IMP008,Operational Services,Revenue,"Equip, Furniture And Materials",Street And Traffic Management,
http://thanet.gov.uk/supplierspend,Thanet District Council,06/05/2015,383882,4340.00,,Inphase Ltd,INP001,Corporate Resources and S151,Revenue,Communications & Computing,Ict,
http://thanet.gov.uk/supplierspend,Thanet District Council,06/05/2015,383820,126278.76,,J Breheny Contractors Ltd,BRE002,Corporate Resources and S151,Balance Sheet,Infrastructure,Construction-Repair And Maint,
http://thanet.gov.uk/supplierspend,Thanet District Council,06/05/2015,383500,30931.06,,J Rospo Building Contractors,ROS001,Corporate Resources and S151,Balance Sheet,Other Land And Buildings-Hra,Construction-Repair And Maint,
http://thanet.gov.uk/supplierspend,Thanet District Council,06/05/2015,384121,444.00,,John Gale,GAL001,Corporate Resources and S151,Balance Sheet,Capital Exp-Non Council Assets,Grants,
http://thanet.gov.uk/supplierspend,Thanet District Council,06/05/2015,383821,900.00,,Jump It Recruitment Solutions Ltd,JUM001,East Kent Shared Services,Revenue,Agency Staff,Human Resources,
http://thanet.gov.uk/supplierspend,Thanet District Council,06/05/2015,383190,221.55,,Keltic Ltd,KEL007,Operational Services,Revenue,"Clothes, Uniforms & Laundry",Clothing,
http://thanet.gov.uk/supplierspend,Thanet District Council,06/05/2015,383086,2260.17,,Kent County Council,KCC002,Corporate Resources and S151,Balance Sheet,Capital Exp-Non Council Assets,Various Cats-Public Sector,
http://thanet.gov.uk/supplierspend,Thanet District Council,06/05/2015,383106,2000.00,,Kent Wildlife Trust,KEN007,Community Services,Revenue,Services,Various Categories,
http://thanet.gov.uk/supplierspend,Thanet District Council,06/05/2015,383570,274.27,,L W Burt & Son Ltd,BUR027,Community Services,Revenue,"Repairs,  Alter & Mtce - Build",Construction-Repair And Maint,
http://thanet.gov.uk/supplierspend,Thanet District Council,06/05/2015,383507,1343.05,,Lobster Van Hire Ltd,LOB001,Operational Services,Revenue,Cont Hire & Operating Lease,Vehicle Management,
http://thanet.gov.uk/supplierspend,Thanet District Council,06/05/2015,383652,30979.65,,Locata (Housing Services) Ltd,LOC015,Community Services,Revenue,Communications & Computing,Ict,
http://thanet.gov.uk/supplierspend,Thanet District Council,06/05/2015,383653,597.79,,Locata (Housing Services) Ltd,LOC015,Community Services,Revenue,Communications & Computing,Ict,
http://thanet.gov.uk/supplierspend,Thanet District Council,06/05/2015,383654,258.90,,Locata (Housing Services) Ltd,LOC015,Community Services,Revenue,Communications & Computing,Ict,
http://thanet.gov.uk/supplierspend,Thanet District Council,06/05/2015,383661,2520.00,,Locata (Housing Services) Ltd,LOC015,Community Services,Revenue,Communications & Computing,Ict,
http://thanet.gov.uk/supplierspend,Thanet District Council,06/05/2015,383021,1221.61,,Mears Ltd,MEA003,Corporate Resources and S151,Balance Sheet,Rechargeable Works,Construction-Repair And Maint,
http://thanet.gov.uk/supplierspend,Thanet District Council,06/05/2015,383849,333.70,,Mears Ltd,MEA003,Operational Services,Revenue,"Repairs,  Alter & Mtce - Build",Construction-Repair And Maint,
http://thanet.gov.uk/supplierspend,Thanet District Council,06/05/2015,383850,373.93,,Mears Ltd,MEA003,Operational Services,Revenue,"Repairs,  Alter & Mtce - Build",Construction-Repair And Maint,
http://thanet.gov.uk/supplierspend,Thanet District Council,06/05/2015,383851,255.47,,Mears Ltd,MEA003,Operational Services,Revenue,"Repairs,  Alter & Mtce - Build",Construction-Repair And Maint,
http://thanet.gov.uk/supplierspend,Thanet District Council,06/05/2015,383854,299.35,,Mears Ltd,MEA003,Operational Services,Revenue,"Repairs,  Alter & Mtce - Build",Construction-Repair And Maint,
http://thanet.gov.uk/supplierspend,Thanet District Council,06/05/2015,382765,400.00,,Meridian Membranes,MER018,Operational Services,Revenue,"Repairs,  Alter & Mtce - Build",Building Construction Material,
http://thanet.gov.uk/supplierspend,Thanet District Council,06/05/2015,383596,1415.41,,Midland Software Limited,MID013,Corporate Resources and S151,Balance Sheet,Plant And Equipment,Ict,
http://thanet.gov.uk/supplierspend,Thanet District Council,06/05/2015,383597,660.24,,Midland Software Limited,MID013,Corporate Resources and S151,Balance Sheet,Plant And Equipment,Ict,
http://thanet.gov.uk/supplierspend,Thanet District Council,06/05/2015,383574,699.30,,Morgan Jones Ltd,MOR001,Community Services,Revenue,Services,Human Resources,
http://thanet.gov.uk/supplierspend,Thanet District Council,06/05/2015,383852,460.00,,Mrs K Hooper,HOO004,Chief Executive,Revenue,Services,Consultancy,
http://thanet.gov.uk/supplierspend,Thanet District Council,06/05/2015,383853,450.00,,Mrs K Hooper,HOO004,Chief Executive,Revenue,Services,Consultancy,
http://thanet.gov.uk/supplierspend,Thanet District Council,06/05/2015,384129,4258.80,,National Express Ltd,NAT010,Community Services,Revenue,Services,Agency Payments,
http://thanet.gov.uk/supplierspend,Thanet District Council,06/05/2015,384107,4960.00,,Northwood Builders,NOR002,Corporate Resources and S151,Balance Sheet,Capital Exp-Non Council Assets,Grants,
http://thanet.gov.uk/supplierspend,Thanet District Council,06/05/2015,384122,4440.00,,Northwood Builders,NOR002,Corporate Resources and S151,Balance Sheet,Capital Exp-Non Council Assets,Grants,
http://thanet.gov.uk/supplierspend,Thanet District Council,06/05/2015,383624,17698.16,,Ocs Group Uk Ltd T/A Fountains,OCS005,Operational Services,Revenue,Cleaning & Domestic Supplies,Cleaning And Janitorial,
http://thanet.gov.uk/supplierspend,Thanet District Council,06/05/2015,383628,402.25,,Ocs Group Uk Ltd T/A Fountains,OCS005,Operational Services,Revenue,Fixtures & Fittings,Cleaning And Janitorial,
http://thanet.gov.uk/supplierspend,Thanet District Council,06/05/2015,383629,506.39,,Ocs Group Uk Ltd T/A Fountains,OCS005,Operational Services,Revenue,Fixtures & Fittings,Cleaning And Janitorial,
http://thanet.gov.uk/supplierspend,Thanet District Council,06/05/2015,383630,686.53,,Ocs Group Uk Ltd T/A Fountains,OCS005,Operational Services,Revenue,Fixtures & Fittings,Cleaning And Janitorial,
http://thanet.gov.uk/supplierspend,Thanet District Council,06/05/2015,383130,297.64,,Orbis Protect Limited,ORB009,Community Services,Revenue,Services,Facilities And Mangement Serv,
http://thanet.gov.uk/supplierspend,Thanet District Council,06/05/2015,382973,657.50,,R Cannon,CAN007,Operational Services,Revenue,Services,Maritime Services,
http://thanet.gov.uk/supplierspend,Thanet District Council,06/05/2015,382974,287.50,,R Cannon,CAN007,Operational Services,Revenue,Services,Maritime Services,
http://thanet.gov.uk/supplierspend,Thanet District Council,06/05/2015,384105,440.89,,Regency Properties,REG004,Community Services,Revenue,Grants & Subscriptions,Rent Deposits,
http://thanet.gov.uk/supplierspend,Thanet District Council,06/05/2015,383664,427.40,,Rexel Uk Limited,REX003,Operational Services,Revenue,"Repairs,  Alter & Mtce - Build",Building Construction Material,
http://thanet.gov.uk/supplierspend,Thanet District Council,06/05/2015,383663,7897.00,,Rigby Taylor Ltd,RIG002,Operational Services,Revenue,"Equip, Furniture And Materials",Horticultural,
http://thanet.gov.uk/supplierspend,Thanet District Council,06/05/2015,384100,1265.00,,S Pattison,PAT007,Operational Services,Revenue,"Repairs,  Alter & Mtce - Build",Building Construction Material,
http://thanet.gov.uk/supplierspend,Thanet District Council,06/05/2015,384159,75000.00,,Sands Heritage Ltd,SAN025,Corporate Resources and S151,Balance Sheet,Capital Exp-Non Council Assets,Grants,
http://thanet.gov.uk/supplierspend,Thanet District Council,06/05/2015,383166,886.55,,Sellick Partnership Ltd,SEL011,Corporate Resources and S151,Revenue,Agency Staff,Human Resources,
http://thanet.gov.uk/supplierspend,Thanet District Council,06/05/2015,383505,2113.65,,Sellick Partnership Ltd,SEL011,Corporate Resources and S151,Revenue,Agency Staff,Human Resources,
http://thanet.gov.uk/supplierspend,Thanet District Council,06/05/2015,383526,2581.00,,Sellick Partnership Ltd,SEL011,Corporate Resources and S151,Revenue,Services,Human Resources,
http://thanet.gov.uk/supplierspend,Thanet District Council,06/05/2015,382760,1559.90,,Shaw & Sons Ltd,SHA002,Corporate Resources and S151,Revenue,"Print, Stat And Gen Off Exps",Facilities And Mangement Serv,
http://thanet.gov.uk/supplierspend,Thanet District Council,06/05/2015,383660,15753.00,,Siemens Plc,SIE002,Operational Services,Revenue,"Equip, Furniture And Materials",Facilities And Mangement Serv,
http://thanet.gov.uk/supplierspend,Thanet District Council,06/05/2015,383600,1313.86,,Signway Supplies (Datchet) Limited,SIG013,Operational Services,Revenue,"Repairs,  Alter & Mtce - Build",Highway Equipment And Material,
http://thanet.gov.uk/supplierspend,Thanet District Council,06/05/2015,383515,1500.00,,Sjr Pm Solutions Limited,SJR001,East Kent Shared Services,Revenue,Services,Ict,
http://thanet.gov.uk/supplierspend,Thanet District Council,06/05/2015,384111,5480.00,,South East Building Company Limited,SEB001,Corporate Resources and S151,Balance Sheet,Capital Exp-Non Council Assets,Grants,
http://thanet.gov.uk/supplierspend,Thanet District Council,06/05/2015,383150,-291.10,,Southern Water,SWA001,Operational Services,Revenue,Water Services,Utilities,
http://thanet.gov.uk/supplierspend,Thanet District Council,06/05/2015,383218,2899.48,,Southern Water,SWA001,Community Services,Revenue,Water Services,Utilities,
http://thanet.gov.uk/supplierspend,Thanet District Council,06/05/2015,383465,413.10,,Sparshatts Of Kent Ltd,SPA008,Operational Services,Revenue,Direct Transport Costs,Vehicle Management,
http://thanet.gov.uk/supplierspend,Thanet District Council,06/05/2015,382744,1990.00,,Stonegrove Facilities Management Ltd,STO026,Operational Services,Revenue,"Repairs,  Alter & Mtce - Build",Cemetery And Crematorium,
http://thanet.gov.uk/supplierspend,Thanet District Council,06/05/2015,383590,4100.00,,Surface 2 Air Media Limited,SUR016,Corporate Resources and S151,Revenue,Services,Facilities And Mangement Serv,
http://thanet.gov.uk/supplierspend,Thanet District Council,06/05/2015,383213,598.47,,Tfa Fuel Services Ltd,TFA003,Operational Services,Revenue,"Equip, Furniture And Materials",Utilities,
http://thanet.gov.uk/supplierspend,Thanet District Council,06/05/2015,384131,1004.49,,Tfa Fuel Services Ltd,TFA003,Operational Services,Revenue,"Equip, Furniture And Materials",Utilities,
http://thanet.gov.uk/supplierspend,Thanet District Council,06/05/2015,383475,246.60,,Thanet Waste Services Ltd,TWA001,Operational Services,Revenue,Private Contractors,Environmental Services,
http://thanet.gov.uk/supplierspend,Thanet District Council,06/05/2015,384108,300.00,,The Duncan & Graham Partnership Ltd,DUN015,Corporate Resources and S151,Balance Sheet,Capital Exp-Non Council Assets,Consultancy,
http://thanet.gov.uk/supplierspend,Thanet District Council,06/05/2015,383582,4888.49,,Trafalgar Cleaning Equipment Ltd,TRA033,Operational Services,Revenue,"Equip, Furniture And Materials",Cleaning And Janitorial,
http://thanet.gov.uk/supplierspend,Thanet District Council,06/05/2015,384113,285.00,,Trueden Disability Adaptations Ltd,TRU012,Corporate Resources and S151,Balance Sheet,Capital Exp-Non Council Assets,Grants,
http://thanet.gov.uk/supplierspend,Thanet District Council,06/05/2015,384115,6682.00,,Trueden Disability Adaptations Ltd,TRU012,Corporate Resources and S151,Balance Sheet,Capital Exp-Non Council Assets,Grants,
http://thanet.gov.uk/supplierspend,Thanet District Council,06/05/2015,384117,11107.00,,Trueden Disability Adaptations Ltd,TRU012,Corporate Resources and S151,Balance Sheet,Capital Exp-Non Council Assets,Grants,
http://thanet.gov.uk/supplierspend,Thanet District Council,06/05/2015,383584,812.00,,Wallace Print Limited,WAL034,Operational Services,Revenue,Miscellaneous Expenses,Facilities And Mangement Serv,
http://thanet.gov.uk/supplierspend,Thanet District Council,06/05/2015,383585,3320.00,,Wallace Print Limited,WAL034,Chief Executive,Revenue,"Print, Stat And Gen Off Exps",Facilities And Mangement Serv,
http://thanet.gov.uk/supplierspend,Thanet District Council,06/05/2015,384124,1000.00,,Wantsum Community & Sports Assoc,WAN004,Community Services,Revenue,Grants & Subscriptions,Grants,
http://thanet.gov.uk/supplierspend,Thanet District Council,06/05/2015,384112,8510.00,,Wessex Lift Company Ltd,WES031,Corporate Resources and S151,Balance Sheet,Capital Exp-Non Council Assets,Various Categories,
http://thanet.gov.uk/supplierspend,Thanet District Council,08/05/2015,383571,1150.00,,Calver Limited,CAL008,Community Services,Revenue,"Equip, Furniture And Materials",Stationery,
http://thanet.gov.uk/supplierspend,Thanet District Council,08/05/2015,384103,600.00,,Mr Paul Tapsell,TAP002,Community Services,Revenue,Services,Legal Services,
http://thanet.gov.uk/supplierspend,Thanet District Council,08/05/2015,383231,3535.00,,Riba Enterprises Ltd,RIB003,Community Services,Revenue,Services,Human Resources,
http://thanet.gov.uk/supplierspend,Thanet District Council,12/05/2015,384041,18092.91,,Advanced Business Solutions,COA011,Corporate Resources and S151,Revenue,Communications & Computing,Ict,
http://thanet.gov.uk/supplierspend,Thanet District Council,12/05/2015,384042,4822.84,,Advanced Business Solutions,COA011,Corporate Resources and S151,Revenue,Communications & Computing,Ict,
http://thanet.gov.uk/supplierspend,Thanet District Council,12/05/2015,384338,2925.00,,Advanced Business Solutions,COA011,Corporate Resources and S151,Revenue,Communications & Computing,Ict,
http://thanet.gov.uk/supplierspend,Thanet District Council,12/05/2015,384568,710.28,,Allstar Business Solutions Ltd,ALL038,Operational Services,Revenue,Direct Transport Costs,Vehicle Management,
http://thanet.gov.uk/supplierspend,Thanet District Council,12/05/2015,383082,1864.03,,Ass Of Electoral Administrators,AEA001,Corporate Resources and S151,Revenue,Expenses,Human Resources,
http://thanet.gov.uk/supplierspend,Thanet District Council,12/05/2015,384564,500.00,,Benham Publishing Ltd,BEN015,Community Services,Revenue,Miscellaneous Expenses,Facilities And Mangement Serv,
http://thanet.gov.uk/supplierspend,Thanet District Council,12/05/2015,383941,10173.77,,Bpi Recycled Products,BPI002,Operational Services,Revenue,"Equip, Furniture And Materials",Environmental Services,
http://thanet.gov.uk/supplierspend,Thanet District Council,12/05/2015,384028,1600.00,,Canterbury Scaffolding,CAN023,Corporate Resources and S151,Balance Sheet,Council Dwellings,Construction-Repair And Maint,
http://thanet.gov.uk/supplierspend,Thanet District Council,12/05/2015,384147,620.00,,City Electrical Factors Ltd,CIT001,Operational Services,Revenue,"Repairs,  Alter & Mtce - Build",Building Construction Material,
http://thanet.gov.uk/supplierspend,Thanet District Council,12/05/2015,384155,339.80,,City Electrical Factors Ltd,CIT001,Operational Services,Revenue,"Repairs,  Alter & Mtce - Build",Building Construction Material,
http://thanet.gov.uk/supplierspend,Thanet District Council,12/05/2015,384362,39023.40,,Civica Uk Ltd,CIV003,Corporate Resources and S151,Revenue,Communications & Computing,Ict,
http://thanet.gov.uk/supplierspend,Thanet District Council,12/05/2015,383974,264.42,,Clear Picture Services Limited,CLE015,Corporate Resources and S151,Balance Sheet,Repairs And Mtce Holding A/C,Facilities And Mangement Serv,
http://thanet.gov.uk/supplierspend,Thanet District Council,12/05/2015,383997,3009.00,,Commercial Services Trading Ltd,COM048,Operational Services,Revenue,Cont Hire & Operating Lease,Various Cats-Public Sector,
http://thanet.gov.uk/supplierspend,Thanet District Council,12/05/2015,384012,1178.72,,Computerland Uk Limited,COM045,East Kent Shared Services,Revenue,Communications & Computing,Ict,
http://thanet.gov.uk/supplierspend,Thanet District Council,12/05/2015,384132,384.24,,Computerland Uk Limited,COM045,Corporate Resources and S151,Revenue,Communications & Computing,Ict,
http://thanet.gov.uk/supplierspend,Thanet District Council,12/05/2015,384286,212.52,,D & S Supplies,DSS002,Operational Services,Revenue,Direct Transport Costs,Vehicle Management,
http://thanet.gov.uk/supplierspend,Thanet District Council,12/05/2015,383949,483.75,,Dover District Council,DOV001,East Kent Shared Services,Revenue,Employee Related Schemes,Various Cats-Public Sector,
http://thanet.gov.uk/supplierspend,Thanet District Council,12/05/2015,384029,5011.80,,Egbert H Taylor & Company Ltd,TAY005,Operational Services,Revenue,"Equip, Furniture And Materials",Environmental Services,
http://thanet.gov.uk/supplierspend,Thanet District Council,12/05/2015,384572,905.44,,Family Mosaic Housing,FAM001,Corporate Resources and S151,Balance Sheet,Capital Exp-Non Council Assets,Housing Management,
http://thanet.gov.uk/supplierspend,Thanet District Council,12/05/2015,382012,14655.00,,G & W Gardner Building Cont Ltd,GAR001,Corporate Resources and S151,Balance Sheet,Council Dwellings,Construction-Repair And Maint,
http://thanet.gov.uk/supplierspend,Thanet District Council,12/05/2015,383961,3134.25,,G & W Gardner Building Cont Ltd,GAR001,Corporate Resources and S151,Balance Sheet,Council Dwellings,Construction-Repair And Maint,
http://thanet.gov.uk/supplierspend,Thanet District Council,12/05/2015,384006,325.00,,Gb Sport & Leisure Uk Ltd,GBS002,Operational Services,Revenue,"Repairs,  Alter & Mtce - Build",Sports Playground Equipment,
http://thanet.gov.uk/supplierspend,Thanet District Council,12/05/2015,383953,300.00,,George Mccabe,MCC001,Operational Services,Revenue,Cleaning & Domestic Supplies,Environmental Services,
http://thanet.gov.uk/supplierspend,Thanet District Council,12/05/2015,383669,355.00,,Gerlack & Thorne Ltd,GER001,Operational Services,Revenue,"Repairs,  Alter & Mtce - Build",Construction-Repair And Maint,
http://thanet.gov.uk/supplierspend,Thanet District Council,12/05/2015,383945,494.00,,Gone Crabbing Limited,GON002,Community Services,Revenue,"Equip, Furniture And Materials",Stationery,
http://thanet.gov.uk/supplierspend,Thanet District Council,12/05/2015,384281,225.18,,Greenham,GRE001,Operational Services,Revenue,"Clothes, Uniforms & Laundry",Clothing,
http://thanet.gov.uk/supplierspend,Thanet District Council,12/05/2015,383880,770.00,,Gulliver'S Truck Hire Limited,GUL001,Operational Services,Revenue,Cont Hire & Operating Lease,Vehicle Management,
http://thanet.gov.uk/supplierspend,Thanet District Council,12/05/2015,384136,518.91,,Hr Go Recruitment Ltd,HRG002,Operational Services,Revenue,Agency Staff,Human Resources,
http://thanet.gov.uk/supplierspend,Thanet District Council,12/05/2015,384137,287.04,,Hr Go Recruitment Ltd,HRG002,Community Services,Revenue,Agency Staff,Human Resources,
http://thanet.gov.uk/supplierspend,Thanet District Council,12/05/2015,384138,386.75,,Hr Go Recruitment Ltd,HRG002,Community Services,Revenue,Agency Staff,Human Resources,
http://thanet.gov.uk/supplierspend,Thanet District Council,12/05/2015,384140,845.99,,Hr Go Recruitment Ltd,HRG002,Operational Services,Revenue,Agency Staff,Human Resources,
http://thanet.gov.uk/supplierspend,Thanet District Council,12/05/2015,384150,1661.51,,Hr Go Recruitment Ltd,HRG002,Operational Services,Revenue,Agency Staff,Human Resources,
http://thanet.gov.uk/supplierspend,Thanet District Council,12/05/2015,384158,1044.75,,Hr Go Recruitment Ltd,HRG002,Operational Services,Revenue,Agency Staff,Human Resources,
http://thanet.gov.uk/supplierspend,Thanet District Council,12/05/2015,384526,7829.92,,Intrinsic Technology Limited,INT006,East Kent Shared Services,Revenue,Communications & Computing,Ict,
http://thanet.gov.uk/supplierspend,Thanet District Council,12/05/2015,383958,14.17,,Irrv,IRR002,East Kent Shared Services,Revenue,Communications & Computing,Human Resources,
http://thanet.gov.uk/supplierspend,Thanet District Council,12/05/2015,383958,195.00,,Irrv,IRR002,East Kent Shared Services,Revenue,Grants & Subscriptions,Human Resources,
http://thanet.gov.uk/supplierspend,Thanet District Council,12/05/2015,383951,274.00,,Jewson Ltd,JEW001,Operational Services,Revenue,"Repairs,  Alter & Mtce - Build",Building Construction Material,
http://thanet.gov.uk/supplierspend,Thanet District Council,12/05/2015,383952,524.85,,Jewson Ltd,JEW001,Operational Services,Revenue,"Equip, Furniture And Materials",Building Construction Material,
http://thanet.gov.uk/supplierspend,Thanet District Council,12/05/2015,384577,7700.00,,Jj Uk Limited,JJU001,Corporate Resources and S151,Balance Sheet,Capital Exp-Non Council Assets,Environmental Services,
http://thanet.gov.uk/supplierspend,Thanet District Council,12/05/2015,384048,631.10,,Johnston Sweepers Ltd,JOH008,Operational Services,Revenue,Direct Transport Costs,Vehicle Management,
http://thanet.gov.uk/supplierspend,Thanet District Council,12/05/2015,383858,3993.75,,Jump It Recruitment Solutions Ltd,JUM001,East Kent Shared Services,Revenue,Agency Staff,Human Resources,
http://thanet.gov.uk/supplierspend,Thanet District Council,12/05/2015,384047,1500.00,,Jump It Recruitment Solutions Ltd,JUM001,East Kent Shared Services,Revenue,Agency Staff,Human Resources,
http://thanet.gov.uk/supplierspend,Thanet District Council,12/05/2015,384133,1015.00,,Kendall Cars Ltd,KEN041,Operational Services,Revenue,Cont Hire & Operating Lease,Vehicle Management,
http://thanet.gov.uk/supplierspend,Thanet District Council,12/05/2015,384134,1015.00,,Kendall Cars Ltd,KEN041,Operational Services,Revenue,Cont Hire & Operating Lease,Vehicle Management,
http://thanet.gov.uk/supplierspend,Thanet District Council,12/05/2015,383516,-790.66,,Kent County Council (Kcs),KCC003,Operational Services,Revenue,Energy Costs,Facilities And Mangement Serv,
http://thanet.gov.uk/supplierspend,Thanet District Council,12/05/2015,383517,-977.34,,Kent County Council (Kcs),KCC003,Operational Services,Revenue,Energy Costs,Facilities And Mangement Serv,
http://thanet.gov.uk/supplierspend,Thanet District Council,12/05/2015,383519,563.39,,Kent County Council (Kcs),KCC003,Operational Services,Revenue,Energy Costs,Facilities And Mangement Serv,
http://thanet.gov.uk/supplierspend,Thanet District Council,12/05/2015,383520,391.42,,Kent County Council (Kcs),KCC003,Operational Services,Revenue,Energy Costs,Facilities And Mangement Serv,
http://thanet.gov.uk/supplierspend,Thanet District Council,12/05/2015,383603,744.93,,Kent County Council (Kcs),KCC003,Operational Services,Revenue,Energy Costs,Facilities And Mangement Serv,
http://thanet.gov.uk/supplierspend,Thanet District Council,12/05/2015,384005,27623.59,,Kent County Council (Kcs),KCC003,Operational Services,Revenue,Direct Transport Costs,Facilities And Mangement Serv,
http://thanet.gov.uk/supplierspend,Thanet District Council,12/05/2015,384016,452.12,,Lyreco Uk Limited,LYR001,Community Services,Revenue,"Print, Stat And Gen Off Exps",Stationery,
http://thanet.gov.uk/supplierspend,Thanet District Council,12/05/2015,383522,168.21,,Mears Ltd,MEA003,Community Services,Revenue,"Repairs,  Alter & Mtce - Build",Construction-Repair And Maint,
http://thanet.gov.uk/supplierspend,Thanet District Council,12/05/2015,383884,841.81,,Mears Ltd,MEA003,Operational Services,Revenue,"Repairs,  Alter & Mtce - Build",Construction-Repair And Maint,
http://thanet.gov.uk/supplierspend,Thanet District Council,12/05/2015,383885,1040.26,,Mears Ltd,MEA003,Community Services,Revenue,"Repairs,  Alter & Mtce - Build",Construction-Repair And Maint,
http://thanet.gov.uk/supplierspend,Thanet District Council,12/05/2015,383890,59.83,,Mears Ltd,MEA003,Community Services,Revenue,"Repairs,  Alter & Mtce - Build",Construction-Repair And Maint,
http://thanet.gov.uk/supplierspend,Thanet District Council,12/05/2015,383890,341.09,,Mears Ltd,MEA003,Operational Services,Revenue,"Repairs,  Alter & Mtce - Build",Construction-Repair And Maint,
http://thanet.gov.uk/supplierspend,Thanet District Council,12/05/2015,384127,451.16,,Mears Ltd,MEA003,Community Services,Revenue,"Repairs,  Alter & Mtce - Build",Construction-Repair And Maint,
http://thanet.gov.uk/supplierspend,Thanet District Council,12/05/2015,384142,253.22,,Mears Ltd,MEA003,Community Services,Revenue,"Repairs,  Alter & Mtce - Build",Construction-Repair And Maint,
http://thanet.gov.uk/supplierspend,Thanet District Council,12/05/2015,383939,622.50,,Mr Darren Osborne,OSB008,Community Services,Revenue,Cleaning & Domestic Supplies,Cleaning And Janitorial,
http://thanet.gov.uk/supplierspend,Thanet District Council,12/05/2015,383939,30.00,,Mr Darren Osborne,OSB008,Operational Services,Revenue,Cleaning & Domestic Supplies,Cleaning And Janitorial,
http://thanet.gov.uk/supplierspend,Thanet District Council,12/05/2015,383676,449.96,,Nauticalia Limited,NAU001,Community Services,Revenue,"Equip, Furniture And Materials",Stationery,
http://thanet.gov.uk/supplierspend,Thanet District Council,12/05/2015,384039,591.00,,New Tech Security Ltd,NEW027,Community Services,Revenue,"Equip, Furniture And Materials",Facilities And Mangement Serv,
http://thanet.gov.uk/supplierspend,Thanet District Council,12/05/2015,384043,225.00,,Northgate Public Services (Uk) Ltd,NOR018,East Kent Shared Services,Revenue,Communications & Computing,Ict,
http://thanet.gov.uk/supplierspend,Thanet District Council,12/05/2015,384578,1389.00,,Northwood Builders,NOR002,Corporate Resources and S151,Balance Sheet,Capital Exp-Non Council Assets,Grants,
http://thanet.gov.uk/supplierspend,Thanet District Council,12/05/2015,383560,350.05,,O2 (Uk) Ltd,O2U001,Operational Services,Revenue,Communications & Computing,Ict,
http://thanet.gov.uk/supplierspend,Thanet District Council,12/05/2015,383625,11498.41,,Ocs Group Uk Ltd T/A Fountains,OCS005,Corporate Resources and S151,Balance Sheet,Repairs And Mtce Holding A/C,Cleaning And Janitorial,
http://thanet.gov.uk/supplierspend,Thanet District Council,12/05/2015,383626,797.69,,Ocs Group Uk Ltd T/A Fountains,OCS005,Community Services,Revenue,Cleaning & Domestic Supplies,Cleaning And Janitorial,
http://thanet.gov.uk/supplierspend,Thanet District Council,12/05/2015,383859,292.75,,Orange Personal Communications Ltd,ORA002,Corporate Resources and S151,Revenue,Communications & Computing,Ict,
http://thanet.gov.uk/supplierspend,Thanet District Council,12/05/2015,383942,90.00,,Parkeon Limited,PAR063,Community Services,Revenue,"Equip, Furniture And Materials",Street And Traffic Management,
http://thanet.gov.uk/supplierspend,Thanet District Council,12/05/2015,383942,846.00,,Parkeon Limited,PAR063,Operational Services,Revenue,"Equip, Furniture And Materials",Street And Traffic Management,
http://thanet.gov.uk/supplierspend,Thanet District Council,12/05/2015,384040,970.65,,Portakabin Ltd,POR001,Operational Services,Revenue,"Repairs,  Alter & Mtce - Build",Facilities And Mangement Serv,
http://thanet.gov.uk/supplierspend,Thanet District Council,12/05/2015,383883,665.00,,R Cannon,CAN007,Operational Services,Revenue,Services,Maritime Services,
http://thanet.gov.uk/supplierspend,Thanet District Council,12/05/2015,384346,1400.00,,Ransomes Jacobsen Ltd,RAN003,Operational Services,Revenue,Training,Human Resources,
http://thanet.gov.uk/supplierspend,Thanet District Council,12/05/2015,384567,297.35,,REDACTED PERSONAL DATA,WIL072,Corporate Resources and S151,Revenue,Interview Expenses,Non Trade Payee,
http://thanet.gov.uk/supplierspend,Thanet District Council,12/05/2015,383940,238.70,,Rexel Uk Limited,REX003,Operational Services,Revenue,"Repairs,  Alter & Mtce - Build",Building Construction Material,
http://thanet.gov.uk/supplierspend,Thanet District Council,12/05/2015,383956,3934.53,,Royal Mail,ROY004,Community Services,Revenue,Communications & Computing,Mail Services,
http://thanet.gov.uk/supplierspend,Thanet District Council,12/05/2015,384130,260.00,,Royal Mail,ROY004,Community Services,Revenue,Communications & Computing,Mail Services,
http://thanet.gov.uk/supplierspend,Thanet District Council,12/05/2015,383583,900.00,,Sellick Partnership Ltd,SEL011,Community Services,Revenue,Services,Human Resources,
http://thanet.gov.uk/supplierspend,Thanet District Council,12/05/2015,384151,900.00,,Sellick Partnership Ltd,SEL011,Community Services,Revenue,Services,Human Resources,
http://thanet.gov.uk/supplierspend,Thanet District Council,12/05/2015,383955,729.00,,South East Elec Vehicle Servs Ltd,SEE018,Operational Services,Revenue,"Repairs,  Alter & Mtce - Build",Vehicle Management,
http://thanet.gov.uk/supplierspend,Thanet District Council,12/05/2015,383482,366.73,,Southern Electric,SEL007,Community Services,Revenue,Energy Costs,Utilities,
http://thanet.gov.uk/supplierspend,Thanet District Council,12/05/2015,384268,404.01,,Southern Electric,SEL007,Community Services,Revenue,Energy Costs,Utilities,
http://thanet.gov.uk/supplierspend,Thanet District Council,12/05/2015,384270,265.04,,Southern Electric,SEL007,Community Services,Revenue,Energy Costs,Utilities,
http://thanet.gov.uk/supplierspend,Thanet District Council,12/05/2015,383478,553.00,,Southern Water,SWA001,Operational Services,Revenue,Water Services,Utilities,
http://thanet.gov.uk/supplierspend,Thanet District Council,12/05/2015,383479,305.71,,Southern Water,SWA001,Operational Services,Revenue,Water Services,Utilities,
http://thanet.gov.uk/supplierspend,Thanet District Council,12/05/2015,383481,852.64,,Southern Water,SWA001,Operational Services,Revenue,Water Services,Utilities,
http://thanet.gov.uk/supplierspend,Thanet District Council,12/05/2015,383556,295.55,,Southern Water,SWA001,Operational Services,Revenue,Water Services,Utilities,
http://thanet.gov.uk/supplierspend,Thanet District Council,12/05/2015,383557,269.72,,Southern Water,SWA001,Operational Services,Revenue,Water Services,Utilities,
http://thanet.gov.uk/supplierspend,Thanet District Council,12/05/2015,383558,464.35,,Southern Water,SWA001,Operational Services,Revenue,Water Services,Utilities,
http://thanet.gov.uk/supplierspend,Thanet District Council,12/05/2015,383824,921.73,,Southern Water,SWA001,Operational Services,Revenue,Water Services,Utilities,
http://thanet.gov.uk/supplierspend,Thanet District Council,12/05/2015,383825,2812.16,,Southern Water,SWA001,Operational Services,Revenue,Water Services,Utilities,
http://thanet.gov.uk/supplierspend,Thanet District Council,12/05/2015,383827,392.66,,Southern Water,SWA001,Operational Services,Revenue,Water Services,Utilities,
http://thanet.gov.uk/supplierspend,Thanet District Council,12/05/2015,383829,1639.01,,Southern Water,SWA001,Operational Services,Revenue,Water Services,Utilities,
http://thanet.gov.uk/supplierspend,Thanet District Council,12/05/2015,383831,388.91,,Southern Water,SWA001,Operational Services,Revenue,Water Services,Utilities,
http://thanet.gov.uk/supplierspend,Thanet District Council,12/05/2015,383834,1659.92,,Southern Water,SWA001,Operational Services,Revenue,Water Services,Utilities,
http://thanet.gov.uk/supplierspend,Thanet District Council,12/05/2015,383835,1526.76,,Southern Water,SWA001,Operational Services,Revenue,Water Services,Utilities,
http://thanet.gov.uk/supplierspend,Thanet District Council,12/05/2015,383838,1327.39,,Southern Water,SWA001,Community Services,Revenue,Water Services,Utilities,
http://thanet.gov.uk/supplierspend,Thanet District Council,12/05/2015,383839,1593.80,,Southern Water,SWA001,Operational Services,Revenue,Water Services,Utilities,
http://thanet.gov.uk/supplierspend,Thanet District Council,12/05/2015,383842,455.46,,Southern Water,SWA001,Community Services,Revenue,Water Services,Utilities,
http://thanet.gov.uk/supplierspend,Thanet District Council,12/05/2015,383847,2014.04,,Southern Water,SWA001,Operational Services,Revenue,Water Services,Utilities,
http://thanet.gov.uk/supplierspend,Thanet District Council,12/05/2015,384144,490.00,,Stagecoach Services Limited,STA023,Corporate Resources and S151,Balance Sheet,Staff Bus Permits Holding A/C,Public Transport,
http://thanet.gov.uk/supplierspend,Thanet District Council,12/05/2015,384571,490.00,,Stagecoach Services Limited,STA023,Corporate Resources and S151,Balance Sheet,Staff Bus Permits Holding A/C,Public Transport,
http://thanet.gov.uk/supplierspend,Thanet District Council,12/05/2015,384376,2710.05,,Sutcliffe Play Ltd,SUT007,Operational Services,Revenue,"Repairs,  Alter & Mtce - Build",Sports Playground Equipment,
http://thanet.gov.uk/supplierspend,Thanet District Council,12/05/2015,384056,1564.35,,Swale Heating Ltd,SWA006,Corporate Resources and S151,Balance Sheet,Repairs And Mtce Holding A/C,Building Construction Material,
http://thanet.gov.uk/supplierspend,Thanet District Council,12/05/2015,384057,1558.30,,Swale Heating Ltd,SWA006,Corporate Resources and S151,Balance Sheet,Repairs And Mtce Holding A/C,Building Construction Material,
http://thanet.gov.uk/supplierspend,Thanet District Council,12/05/2015,384078,1747.70,,Swale Heating Ltd,SWA006,Corporate Resources and S151,Balance Sheet,Repairs And Mtce Holding A/C,Building Construction Material,
http://thanet.gov.uk/supplierspend,Thanet District Council,12/05/2015,384079,1933.62,,Swale Heating Ltd,SWA006,Corporate Resources and S151,Balance Sheet,Repairs And Mtce Holding A/C,Building Construction Material,
http://thanet.gov.uk/supplierspend,Thanet District Council,12/05/2015,384080,1878.35,,Swale Heating Ltd,SWA006,Corporate Resources and S151,Balance Sheet,Repairs And Mtce Holding A/C,Building Construction Material,
http://thanet.gov.uk/supplierspend,Thanet District Council,12/05/2015,384081,1546.70,,Swale Heating Ltd,SWA006,Corporate Resources and S151,Balance Sheet,Repairs And Mtce Holding A/C,Building Construction Material,
http://thanet.gov.uk/supplierspend,Thanet District Council,12/05/2015,384082,1658.25,,Swale Heating Ltd,SWA006,Corporate Resources and S151,Balance Sheet,Repairs And Mtce Holding A/C,Building Construction Material,
http://thanet.gov.uk/supplierspend,Thanet District Council,12/05/2015,384083,2856.21,,Swale Heating Ltd,SWA006,Corporate Resources and S151,Balance Sheet,Repairs And Mtce Holding A/C,Building Construction Material,
http://thanet.gov.uk/supplierspend,Thanet District Council,12/05/2015,384084,1427.68,,Swale Heating Ltd,SWA006,Corporate Resources and S151,Balance Sheet,Repairs And Mtce Holding A/C,Building Construction Material,
http://thanet.gov.uk/supplierspend,Thanet District Council,12/05/2015,384085,1602.98,,Swale Heating Ltd,SWA006,Corporate Resources and S151,Balance Sheet,Repairs And Mtce Holding A/C,Building Construction Material,
http://thanet.gov.uk/supplierspend,Thanet District Council,12/05/2015,384097,2928.57,,Swale Heating Ltd,SWA006,Corporate Resources and S151,Balance Sheet,Repairs And Mtce Holding A/C,Building Construction Material,
http://thanet.gov.uk/supplierspend,Thanet District Council,12/05/2015,384010,900.00,,Sysnet Global Solutions (Uk) Limited,SYS003,East Kent Shared Services,Revenue,Services,Consultancy,
http://thanet.gov.uk/supplierspend,Thanet District Council,12/05/2015,383568,825.49,,Tfa Fuel Services Ltd,TFA003,Operational Services,Revenue,"Equip, Furniture And Materials",Utilities,
http://thanet.gov.uk/supplierspend,Thanet District Council,12/05/2015,383970,360.94,,Tfa Fuel Services Ltd,TFA003,Operational Services,Revenue,"Equip, Furniture And Materials",Utilities,
http://thanet.gov.uk/supplierspend,Thanet District Council,12/05/2015,383918,3120.82,,The Glenwood Hotel,GLE007,Community Services,Revenue,Services,Housing Management,
http://thanet.gov.uk/supplierspend,Thanet District Council,12/05/2015,383919,1374.97,,The Glenwood Hotel,GLE007,Community Services,Revenue,Services,Housing Management,
http://thanet.gov.uk/supplierspend,Thanet District Council,12/05/2015,383959,210.86,,The Grand Garage,GRA016,Operational Services,Revenue,Direct Transport Costs,Vehicle Management,
http://thanet.gov.uk/supplierspend,Thanet District Council,12/05/2015,384023,460.00,,The Management Centre (Uk) Limited,MAN029,East Kent Shared Services,Revenue,Expenses,Human Resources,
http://thanet.gov.uk/supplierspend,Thanet District Council,12/05/2015,384336,5391.00,,Thintech Ltd,THI009,East Kent Shared Services,Revenue,Communications & Computing,Ict,
http://thanet.gov.uk/supplierspend,Thanet District Council,12/05/2015,384017,356459.79,,Topbond Plc,TOP010,Corporate Resources and S151,Balance Sheet,Other Land And Buildings-Hra,Construction-Repair And Maint,
http://thanet.gov.uk/supplierspend,Thanet District Council,12/05/2015,384573,7512.00,,Trueden Disability Adaptations Ltd,TRU012,Corporate Resources and S151,Balance Sheet,Capital Exp-Non Council Assets,Grants,
http://thanet.gov.uk/supplierspend,Thanet District Council,12/05/2015,384422,1643.00,,Uk Power Networks (Operations) Ltd,UKP001,Corporate Resources and S151,Balance Sheet,Other Land And Buildings-Hra,Utilities,
http://thanet.gov.uk/supplierspend,Thanet District Council,12/05/2015,383983,370.00,,Uplands Engineering Ltd,UPL001,Operational Services,Revenue,"Repairs,  Alter & Mtce - Build",Maritime Services,
http://thanet.gov.uk/supplierspend,Thanet District Council,12/05/2015,384287,925.00,,Weir & Carmichael Limited,WEI004,Operational Services,Revenue,"Equip, Furniture And Materials",Environmental Services,
http://thanet.gov.uk/supplierspend,Thanet District Council,12/05/2015,384283,770.96,,Westbury Industrial Supplies Ltd,WES042,Operational Services,Revenue,"Clothes, Uniforms & Laundry",Clothing,
http://thanet.gov.uk/supplierspend,Thanet District Council,12/05/2015,384505,262.05,,Westbury Industrial Supplies Ltd,WES042,Operational Services,Revenue,"Clothes, Uniforms & Laundry",Clothing,
http://thanet.gov.uk/supplierspend,Thanet District Council,12/05/2015,384569,181391.10,,Wgh Ltd,WGH001,Corporate Resources and S151,Balance Sheet,Other Land And Buildings-Hra,Consultancy,
http://thanet.gov.uk/supplierspend,Thanet District Council,12/05/2015,384390,1640.00,,Windridge Coatings Ltd,WIN005,Operational Services,Revenue,"Equip, Furniture And Materials",Horticultural,
http://thanet.gov.uk/supplierspend,Thanet District Council,12/05/2015,384559,219.00,,Zen Internet Ltd,ZEN001,East Kent Shared Services,Revenue,Communications & Computing,Ict,
http://thanet.gov.uk/supplierspend,Thanet District Council,14/05/2015,384547,269.10,,Carol Peters,PET003,Community Services,Revenue,Services,Agency Payments,
http://thanet.gov.uk/supplierspend,Thanet District Council,14/05/2015,384548,872.10,,Carol Peters,PET003,Community Services,Revenue,Services,Agency Payments,
http://thanet.gov.uk/supplierspend,Thanet District Council,14/05/2015,383595,801046.85,,Coombs (Canterbury) Ltd,COO033,Corporate Resources and S151,Balance Sheet,Other Land And Buildings-Hra,Construction-Repair And Maint,
http://thanet.gov.uk/supplierspend,Thanet District Council,14/05/2015,384451,4435.75,,Crown Estate,CRO022,Operational Services,Revenue,Rents,Maritime Services,
http://thanet.gov.uk/supplierspend,Thanet District Council,14/05/2015,384452,23733.50,,Crown Estate,CRO022,Operational Services,Revenue,Rents,Maritime Services,
http://thanet.gov.uk/supplierspend,Thanet District Council,14/05/2015,384453,18264.25,,Crown Estate,CRO022,Operational Services,Revenue,Rents,Maritime Services,
http://thanet.gov.uk/supplierspend,Thanet District Council,14/05/2015,384496,336.70,,Dennis Eagle Ltd,DEN005,Operational Services,Revenue,Direct Transport Costs,Vehicle Management,
http://thanet.gov.uk/supplierspend,Thanet District Council,14/05/2015,383088,4214.08,,East Kent Housing Ltd,EKH002,Community Services,Revenue,Miscellaneous Expenses,Housing Management,
http://thanet.gov.uk/supplierspend,Thanet District Council,14/05/2015,384481,650.00,,Hi Way Services Ltd,HIW002,Operational Services,Revenue,"Repairs,  Alter & Mtce - Build",Highway Equipment And Material,
http://thanet.gov.uk/supplierspend,Thanet District Council,14/05/2015,383636,1652.37,,Hr Go Recruitment Ltd,HRG002,Operational Services,Revenue,Agency Staff,Human Resources,
http://thanet.gov.uk/supplierspend,Thanet District Council,14/05/2015,383637,8311.98,,Hr Go Recruitment Ltd,HRG002,Operational Services,Revenue,Agency Staff,Human Resources,
http://thanet.gov.uk/supplierspend,Thanet District Council,14/05/2015,383638,5398.39,,Hr Go Recruitment Ltd,HRG002,Operational Services,Revenue,Agency Staff,Human Resources,
http://thanet.gov.uk/supplierspend,Thanet District Council,14/05/2015,384135,7821.01,,Hr Go Recruitment Ltd,HRG002,Operational Services,Revenue,Agency Staff,Human Resources,
http://thanet.gov.uk/supplierspend,Thanet District Council,14/05/2015,384139,4423.00,,Hr Go Recruitment Ltd,HRG002,Operational Services,Revenue,Agency Staff,Human Resources,
http://thanet.gov.uk/supplierspend,Thanet District Council,14/05/2015,384141,1199.92,,Hr Go Recruitment Ltd,HRG002,Operational Services,Revenue,Agency Staff,Human Resources,
http://thanet.gov.uk/supplierspend,Thanet District Council,14/05/2015,384538,1678.63,,Hr Go Recruitment Ltd,HRG002,Operational Services,Revenue,Agency Staff,Human Resources,
http://thanet.gov.uk/supplierspend,Thanet District Council,14/05/2015,384539,410.25,,Hr Go Recruitment Ltd,HRG002,Operational Services,Revenue,Agency Staff,Human Resources,
http://thanet.gov.uk/supplierspend,Thanet District Council,14/05/2015,384540,845.99,,Hr Go Recruitment Ltd,HRG002,Operational Services,Revenue,Agency Staff,Human Resources,
http://thanet.gov.uk/supplierspend,Thanet District Council,14/05/2015,384544,1060.50,,Hr Go Recruitment Ltd,HRG002,Operational Services,Revenue,Agency Staff,Human Resources,
http://thanet.gov.uk/supplierspend,Thanet District Council,14/05/2015,384033,650.00,,John R Couzens,COU001,Operational Services,Revenue,"Repairs,  Alter & Mtce - Build",Construction-Repair And Maint,
http://thanet.gov.uk/supplierspend,Thanet District Council,14/05/2015,384512,1500.00,,Jump It Recruitment Solutions Ltd,JUM001,East Kent Shared Services,Revenue,Agency Staff,Human Resources,
http://thanet.gov.uk/supplierspend,Thanet District Council,14/05/2015,384513,1775.00,,Jump It Recruitment Solutions Ltd,JUM001,East Kent Shared Services,Revenue,Agency Staff,Human Resources,
http://thanet.gov.uk/supplierspend,Thanet District Council,14/05/2015,384524,3016.42,,Level 3 Communications (Uk) Ltd,LEV005,Corporate Resources and S151,Balance Sheet,Telephone Holding Account,Ict,
http://thanet.gov.uk/supplierspend,Thanet District Council,14/05/2015,384002,990.00,,Local Government Association,LGA001,Chief Executive,Revenue,Expenses,Various Categories,
http://thanet.gov.uk/supplierspend,Thanet District Council,14/05/2015,383976,17603.49,,Mears Ltd,MEA003,Corporate Resources and S151,Balance Sheet,Repairs And Mtce Holding A/C,Construction-Repair And Maint,
http://thanet.gov.uk/supplierspend,Thanet District Council,14/05/2015,383977,618.32,,Mears Ltd,MEA003,Corporate Resources and S151,Balance Sheet,Repairs And Mtce Holding A/C,Construction-Repair And Maint,
http://thanet.gov.uk/supplierspend,Thanet District Council,14/05/2015,383978,25596.57,,Mears Ltd,MEA003,Corporate Resources and S151,Balance Sheet,Repairs And Mtce Holding A/C,Construction-Repair And Maint,
http://thanet.gov.uk/supplierspend,Thanet District Council,14/05/2015,383979,47562.20,,Mears Ltd,MEA003,Corporate Resources and S151,Balance Sheet,Repairs And Mtce Holding A/C,Construction-Repair And Maint,
http://thanet.gov.uk/supplierspend,Thanet District Council,14/05/2015,383980,21762.72,,Mears Ltd,MEA003,Corporate Resources and S151,Balance Sheet,Repairs And Mtce Holding A/C,Construction-Repair And Maint,
http://thanet.gov.uk/supplierspend,Thanet District Council,14/05/2015,383981,65769.13,,Mears Ltd,MEA003,Corporate Resources and S151,Balance Sheet,Repairs And Mtce Holding A/C,Construction-Repair And Maint,
http://thanet.gov.uk/supplierspend,Thanet District Council,14/05/2015,383982,378.24,,Mears Ltd,MEA003,Corporate Resources and S151,Balance Sheet,Repairs And Mtce Holding A/C,Construction-Repair And Maint,
http://thanet.gov.uk/supplierspend,Thanet District Council,14/05/2015,384558,564.50,,Midland Software Limited,MID013,Corporate Resources and S151,Balance Sheet,Plant And Equipment,Ict,
http://thanet.gov.uk/supplierspend,Thanet District Council,14/05/2015,384045,531.38,,Morgan Jones Ltd,MOR001,Chief Executive,Revenue,Agency Staff,Human Resources,
http://thanet.gov.uk/supplierspend,Thanet District Council,14/05/2015,384471,531.38,,Morgan Jones Ltd,MOR001,Chief Executive,Revenue,Agency Staff,Human Resources,
http://thanet.gov.uk/supplierspend,Thanet District Council,14/05/2015,383627,406.64,,Ocs Group Uk Ltd T/A Fountains,OCS005,Operational Services,Revenue,"Equip, Furniture And Materials",Cleaning And Janitorial,
http://thanet.gov.uk/supplierspend,Thanet District Council,14/05/2015,384529,20918.52,,Profile Security Services Limited,PRO018,Operational Services,Revenue,Services,Facilities And Mangement Serv,
http://thanet.gov.uk/supplierspend,Thanet District Council,14/05/2015,384534,810.00,,Profile Security Services Limited,PRO018,Operational Services,Revenue,Services,Facilities And Mangement Serv,
http://thanet.gov.uk/supplierspend,Thanet District Council,14/05/2015,383855,2668.00,,Sellick Partnership Ltd,SEL011,Corporate Resources and S151,Revenue,Services,Human Resources,
http://thanet.gov.uk/supplierspend,Thanet District Council,14/05/2015,383872,1008.70,,Sellick Partnership Ltd,SEL011,Corporate Resources and S151,Revenue,Agency Staff,Human Resources,
http://thanet.gov.uk/supplierspend,Thanet District Council,14/05/2015,383975,1552.50,,Sellick Partnership Ltd,SEL011,Corporate Resources and S151,Revenue,Agency Staff,Human Resources,
http://thanet.gov.uk/supplierspend,Thanet District Council,14/05/2015,384324,813.40,,Sellick Partnership Ltd,SEL011,Corporate Resources and S151,Revenue,Agency Staff,Human Resources,
http://thanet.gov.uk/supplierspend,Thanet District Council,14/05/2015,384325,2021.40,,Sellick Partnership Ltd,SEL011,Corporate Resources and S151,Revenue,Agency Staff,Human Resources,
http://thanet.gov.uk/supplierspend,Thanet District Council,14/05/2015,384335,540.00,,Sellick Partnership Ltd,SEL011,Community Services,Revenue,Services,Human Resources,
http://thanet.gov.uk/supplierspend,Thanet District Council,14/05/2015,383891,1200.00,,Silgo Lubricants Ltd,SIL007,Operational Services,Revenue,Direct Transport Costs,Vehicle Management,
http://thanet.gov.uk/supplierspend,Thanet District Council,14/05/2015,383892,1850.00,,Silgo Lubricants Ltd,SIL007,Operational Services,Revenue,Direct Transport Costs,Vehicle Management,
http://thanet.gov.uk/supplierspend,Thanet District Council,14/05/2015,383503,1725.00,,Sjg Enterprises Ltd,SJG002,Corporate Resources and S151,Balance Sheet,Other Land And Buildings-Hra,Building Construction Material,
http://thanet.gov.uk/supplierspend,Thanet District Council,19/05/2015,385009,289.00,,Acf Secretarial,ACF001,Chief Executive,Revenue,Services,Legal Services,
http://thanet.gov.uk/supplierspend,Thanet District Council,19/05/2015,385022,486.25,,Allstar Business Solutions Ltd,ALL038,Operational Services,Revenue,Direct Transport Costs,Vehicle Management,
http://thanet.gov.uk/supplierspend,Thanet District Council,19/05/2015,384372,472.50,,Andy Morris,MOR028,Community Services,Revenue,Services,Arts And Leisure Services,
http://thanet.gov.uk/supplierspend,Thanet District Council,19/05/2015,384769,690.00,,Ashdown Supplies,ASH009,Operational Services,Revenue,"Equip, Furniture And Materials",Cemetery And Crematorium,
http://thanet.gov.uk/supplierspend,Thanet District Council,19/05/2015,385032,318.00,,Aspen Healthcare Ltd,ASP006,Community Services,Revenue,Other Transfer Payments,Non Trade Payee,
http://thanet.gov.uk/supplierspend,Thanet District Council,19/05/2015,384510,9959.92,,Ats Euromaster Ltd,ATS002,Operational Services,Revenue,Direct Transport Costs,Vehicle Management,
http://thanet.gov.uk/supplierspend,Thanet District Council,19/05/2015,384154,418.50,,Beckwith Consulting Limited,BEC001,Corporate Resources and S151,Revenue,Training,Human Resources,
http://thanet.gov.uk/supplierspend,Thanet District Council,19/05/2015,385029,1000.00,,Birchington Parish Council,BIR001,Operational Services,Revenue,Services,Various Cats-Public Sector,
http://thanet.gov.uk/supplierspend,Thanet District Council,19/05/2015,385028,4000.00,,Broadstairs & St Peters Town Council,BRO005,Operational Services,Revenue,Services,Various Cats-Public Sector,
http://thanet.gov.uk/supplierspend,Thanet District Council,19/05/2015,384423,4850.00,,Bronzeshield Lifting Ltd,BRO057,Operational Services,Revenue,"Repairs,  Alter & Mtce - Build",Maritime Services,
http://thanet.gov.uk/supplierspend,Thanet District Council,19/05/2015,384435,650.00,,Bt Payment Services Ltd,BTE003,Operational Services,Revenue,Communications & Computing,Ict,
http://thanet.gov.uk/supplierspend,Thanet District Council,19/05/2015,383960,3188.00,,Campbell Reith Hill Llp,CAM013,Corporate Resources and S151,Balance Sheet,Investment Property For Lease,Consultancy,
http://thanet.gov.uk/supplierspend,Thanet District Council,19/05/2015,384477,2913.48,,Canon (Uk) Ltd,CAN021,Community Services,Revenue,"Equip, Furniture And Materials",Facilities And Mangement Serv,
http://thanet.gov.uk/supplierspend,Thanet District Council,19/05/2015,384478,1942.46,,Canon (Uk) Ltd,CAN021,Community Services,Revenue,"Equip, Furniture And Materials",Facilities And Mangement Serv,
http://thanet.gov.uk/supplierspend,Thanet District Council,19/05/2015,384858,2075.72,,Canon (Uk) Ltd,CAN021,Community Services,Revenue,"Equip, Furniture And Materials",Facilities And Mangement Serv,
http://thanet.gov.uk/supplierspend,Thanet District Council,19/05/2015,384522,1275.00,,Caxtons Commercial Ltd,CAX006,Community Services,Revenue,Services,Consultancy,
http://thanet.gov.uk/supplierspend,Thanet District Council,19/05/2015,383999,989.80,,Civica Uk Ltd,CIV003,East Kent Shared Services,Revenue,Expenses,Ict,
http://thanet.gov.uk/supplierspend,Thanet District Council,19/05/2015,384485,391.30,,Civica Uk Ltd,CIV003,East Kent Shared Services,Revenue,Communications & Computing,Ict,
http://thanet.gov.uk/supplierspend,Thanet District Council,19/05/2015,385030,2000.00,,Cliftonville Partnership,CLI019,Operational Services,Revenue,Services,Grants,
http://thanet.gov.uk/supplierspend,Thanet District Council,19/05/2015,384420,321.78,,Cobalt Telephone Technologies Ltd,COB002,Operational Services,Revenue,Services,Ict,
http://thanet.gov.uk/supplierspend,Thanet District Council,19/05/2015,384486,1588.70,,Cobalt Telephone Technologies Ltd,COB002,Operational Services,Revenue,Communications & Computing,Ict,
http://thanet.gov.uk/supplierspend,Thanet District Council,19/05/2015,383943,294.68,,Computerland Uk Limited,COM045,East Kent Shared Services,Revenue,Communications & Computing,Ict,
http://thanet.gov.uk/supplierspend,Thanet District Council,19/05/2015,384457,1800.00,,David Forsdick Qc,FOR020,Corporate Resources and S151,Balance Sheet,Other Land And Buildings-Hra,Legal Services,
http://thanet.gov.uk/supplierspend,Thanet District Council,19/05/2015,384389,2250.00,,Deborah Carson Consulting Ltd,CAR046,Corporate Resources and S151,Revenue,Training,Human Resources,
http://thanet.gov.uk/supplierspend,Thanet District Council,19/05/2015,384742,1750.00,,Dr R K Chhabra,CHH001,Operational Services,Revenue,Services,Cemetery And Crematorium,
http://thanet.gov.uk/supplierspend,Thanet District Council,19/05/2015,385023,67856.00,,Environment Agency,ENV001,Operational Services,Revenue,Grants & Subscriptions,Environmental Services,
http://thanet.gov.uk/supplierspend,Thanet District Council,19/05/2015,384386,452.25,,Ernest Doe & Sons Ltd,ERN003,Operational Services,Revenue,"Equip, Furniture And Materials",Horticultural,
http://thanet.gov.uk/supplierspend,Thanet District Council,19/05/2015,384391,286.50,,Eyeball Signs,EYE002,Community Services,Revenue,"Print, Stat And Gen Off Exps",Facilities And Mangement Serv,
http://thanet.gov.uk/supplierspend,Thanet District Council,19/05/2015,384426,720.00,,Florence Court Hotel,FLO003,Community Services,Revenue,Services,Housing Management,
http://thanet.gov.uk/supplierspend,Thanet District Council,19/05/2015,384427,390.00,,Florence Court Hotel,FLO003,Community Services,Revenue,Services,Housing Management,
http://thanet.gov.uk/supplierspend,Thanet District Council,19/05/2015,384428,900.00,,Florence Court Hotel,FLO003,Community Services,Revenue,Services,Housing Management,
http://thanet.gov.uk/supplierspend,Thanet District Council,19/05/2015,384430,540.00,,Florence Court Hotel,FLO003,Community Services,Revenue,Services,Housing Management,
http://thanet.gov.uk/supplierspend,Thanet District Council,19/05/2015,384431,360.00,,Florence Court Hotel,FLO003,Community Services,Revenue,Services,Housing Management,
http://thanet.gov.uk/supplierspend,Thanet District Council,19/05/2015,384460,243.95,,Fuel Oils Kent,FUE001,Operational Services,Revenue,"Equip, Furniture And Materials",Utilities,
http://thanet.gov.uk/supplierspend,Thanet District Council,19/05/2015,384491,1500.00,,Gardiner & Theobald Llp,GAR020,Corporate Resources and S151,Balance Sheet,Investment Property For Lease,Consultancy,
http://thanet.gov.uk/supplierspend,Thanet District Council,19/05/2015,384493,3000.00,,Gardiner & Theobald Llp,GAR020,Corporate Resources and S151,Balance Sheet,Investment Property For Lease,Consultancy,
http://thanet.gov.uk/supplierspend,Thanet District Council,19/05/2015,384482,250.00,,George Mccabe,MCC001,Operational Services,Revenue,Cleaning & Domestic Supplies,Environmental Services,
http://thanet.gov.uk/supplierspend,Thanet District Council,19/05/2015,384307,444.00,,Glasdon Uk Ltd,GLA001,Operational Services,Revenue,"Equip, Furniture And Materials",Environmental Services,
http://thanet.gov.uk/supplierspend,Thanet District Council,19/05/2015,384458,5337.80,,Glasdon Uk Ltd,GLA001,Operational Services,Revenue,"Equip, Furniture And Materials",Environmental Services,
http://thanet.gov.uk/supplierspend,Thanet District Council,19/05/2015,384014,27698.00,,Grant Thornton Uk Llp,GRA048,Corporate Resources and S151,Revenue,Services,Financial Services,
http://thanet.gov.uk/supplierspend,Thanet District Council,19/05/2015,384517,424.10,,H E Municipal Engineering Ltd,HEM003,Operational Services,Revenue,Direct Transport Costs,Vehicle Management,
http://thanet.gov.uk/supplierspend,Thanet District Council,19/05/2015,383886,400.00,,Haymarket Media Group Ltd,HAY018,Community Services,Revenue,"Print, Stat And Gen Off Exps",Financial Services,
http://thanet.gov.uk/supplierspend,Thanet District Council,19/05/2015,385014,1090.00,,Haymarket Media Group Ltd,HAY018,Community Services,Revenue,"Print, Stat And Gen Off Exps",Financial Services,
http://thanet.gov.uk/supplierspend,Thanet District Council,19/05/2015,384537,406.64,,Hr Go Recruitment Ltd,HRG002,Community Services,Revenue,Agency Staff,Human Resources,
http://thanet.gov.uk/supplierspend,Thanet District Council,19/05/2015,384541,386.75,,Hr Go Recruitment Ltd,HRG002,Community Services,Revenue,Agency Staff,Human Resources,
http://thanet.gov.uk/supplierspend,Thanet District Council,19/05/2015,384378,1920.00,,Idox Software  Limited,IDO001,Community Services,Revenue,Communications & Computing,Ict,
http://thanet.gov.uk/supplierspend,Thanet District Council,19/05/2015,384762,196845.96,,J Breheny Contractors Ltd,BRE002,Corporate Resources and S151,Balance Sheet,Infrastructure,Construction-Repair And Maint,
http://thanet.gov.uk/supplierspend,Thanet District Council,19/05/2015,384323,2050.00,,Jacqueline Reid,REI005,Corporate Resources and S151,Balance Sheet,Other Land And Buildings-Hra,Legal Services,
http://thanet.gov.uk/supplierspend,Thanet District Council,19/05/2015,384488,1105.00,,Jacqueline Reid,REI005,Corporate Resources and S151,Balance Sheet,Other Land And Buildings-Hra,Legal Services,
http://thanet.gov.uk/supplierspend,Thanet District Council,19/05/2015,384549,545.00,,Jgp Resourcing Ltd,JGP001,Corporate Resources and S151,Revenue,Advertising Expenses,Human Resources,
http://thanet.gov.uk/supplierspend,Thanet District Council,19/05/2015,384418,347.62,,Johnston Sweepers Ltd,JOH008,Operational Services,Revenue,Direct Transport Costs,Vehicle Management,
http://thanet.gov.uk/supplierspend,Thanet District Council,19/05/2015,383954,687.10,,Kelway Ltd,KEL003,East Kent Shared Services,Revenue,Communications & Computing,Ict,
http://thanet.gov.uk/supplierspend,Thanet District Council,19/05/2015,384462,881.67,,Kelway Ltd,KEL003,East Kent Shared Services,Revenue,Communications & Computing,Ict,
http://thanet.gov.uk/supplierspend,Thanet District Council,19/05/2015,384447,418.28,,Kent County Council (Kcs),KCC003,Operational Services,Revenue,"Equip, Furniture And Materials",Facilities And Mangement Serv,
http://thanet.gov.uk/supplierspend,Thanet District Council,19/05/2015,384788,974.31,,Kent County Council (Kcs),KCC003,Operational Services,Revenue,Energy Costs,Facilities And Mangement Serv,
http://thanet.gov.uk/supplierspend,Thanet District Council,19/05/2015,384964,1459.58,,Kent County Council (Kcs),KCC003,Operational Services,Revenue,Energy Costs,Facilities And Mangement Serv,
http://thanet.gov.uk/supplierspend,Thanet District Council,19/05/2015,384966,1259.31,,Kent County Council (Kcs),KCC003,Operational Services,Revenue,Energy Costs,Facilities And Mangement Serv,
http://thanet.gov.uk/supplierspend,Thanet District Council,19/05/2015,384520,2880.00,,Kudos Architecture&Surveying Limited,KUD002,Community Services,Revenue,Services,Consultancy,
http://thanet.gov.uk/supplierspend,Thanet District Council,19/05/2015,384145,1232.00,,Leafi Limited,LEA026,Community Services,Revenue,Rents,Catering,
http://thanet.gov.uk/supplierspend,Thanet District Council,19/05/2015,384421,416.67,,Locata (Housing Services) Ltd,LOC015,Community Services,Revenue,Communications & Computing,Ict,
http://thanet.gov.uk/supplierspend,Thanet District Council,19/05/2015,384530,376.00,,Lyreco Uk Limited,LYR001,Community Services,Revenue,"Print, Stat And Gen Off Exps",Stationery,
http://thanet.gov.uk/supplierspend,Thanet District Council,19/05/2015,384419,1300.00,,Maxwells Grounds Maintenance Ltd,MAX002,Operational Services,Revenue,"Repairs,  Alter & Mtce - Build",Construction-Repair And Maint,
http://thanet.gov.uk/supplierspend,Thanet District Council,19/05/2015,383990,48799.87,,Mears Ltd,MEA003,Corporate Resources and S151,Balance Sheet,Repairs And Mtce Holding A/C,Construction-Repair And Maint,
http://thanet.gov.uk/supplierspend,Thanet District Council,19/05/2015,383991,22206.81,,Mears Ltd,MEA003,Corporate Resources and S151,Balance Sheet,Repairs And Mtce Holding A/C,Construction-Repair And Maint,
http://thanet.gov.uk/supplierspend,Thanet District Council,19/05/2015,383992,19277.52,,Mears Ltd,MEA003,Corporate Resources and S151,Balance Sheet,Repairs And Mtce Holding A/C,Construction-Repair And Maint,
http://thanet.gov.uk/supplierspend,Thanet District Council,19/05/2015,383993,747.50,,Mears Ltd,MEA003,Corporate Resources and S151,Balance Sheet,Repairs And Mtce Holding A/C,Construction-Repair And Maint,
http://thanet.gov.uk/supplierspend,Thanet District Council,19/05/2015,383994,2536.34,,Mears Ltd,MEA003,Corporate Resources and S151,Balance Sheet,Repairs And Mtce Holding A/C,Construction-Repair And Maint,
http://thanet.gov.uk/supplierspend,Thanet District Council,19/05/2015,384556,5596.03,,Med Clean South Ltd,MED015,Operational Services,Revenue,Cleaning & Domestic Supplies,Cleaning And Janitorial,
http://thanet.gov.uk/supplierspend,Thanet District Council,19/05/2015,384561,6502.97,,Medway Council,MED003,Community Services,Revenue,Grants & Subscriptions,Various Cats-Public Sector,
http://thanet.gov.uk/supplierspend,Thanet District Council,19/05/2015,384046,736.90,,Morgan Jones Ltd,MOR001,Community Services,Revenue,Services,Human Resources,
http://thanet.gov.uk/supplierspend,Thanet District Council,19/05/2015,384813,770.00,,Mrs K Hooper,HOO004,Chief Executive,Revenue,Services,Consultancy,
http://thanet.gov.uk/supplierspend,Thanet District Council,19/05/2015,384288,267.34,,Museums & Galleries Limited,MUS004,Community Services,Revenue,"Equip, Furniture And Materials",Stationery,
http://thanet.gov.uk/supplierspend,Thanet District Council,19/05/2015,384320,776.08,,National Boat Shows Ltd,NAT001,Operational Services,Revenue,Miscellaneous Expenses,Arts And Leisure Services,
http://thanet.gov.uk/supplierspend,Thanet District Council,19/05/2015,383868,950.70,,Ncc Mechanical Services Limited,NCC006,Community Services,Revenue,"Repairs,  Alter & Mtce - Build",Construction-Repair And Maint,
http://thanet.gov.uk/supplierspend,Thanet District Council,19/05/2015,384290,563.50,,New Tech Security Ltd,NEW027,Community Services,Revenue,"Repairs,  Alter & Mtce - Build",Facilities And Mangement Serv,
http://thanet.gov.uk/supplierspend,Thanet District Council,19/05/2015,384866,334.85,,Npower Limited,NPO001,Community Services,Revenue,Energy Costs,Utilities,
http://thanet.gov.uk/supplierspend,Thanet District Council,19/05/2015,383870,684.86,,Ntm-Gb Limited,NTM001,Operational Services,Revenue,Direct Transport Costs,Vehicle Management,
http://thanet.gov.uk/supplierspend,Thanet District Council,19/05/2015,384377,213.84,,Ocs Group Uk Ltd T/A Cannon,OCS003,Community Services,Revenue,"Equip, Furniture And Materials",Cleaning And Janitorial,
http://thanet.gov.uk/supplierspend,Thanet District Council,19/05/2015,385020,922.40,,Outset (Uk) Ltd,OUT004,Corporate Resources and S151,Revenue,Services,Legal Services,
http://thanet.gov.uk/supplierspend,Thanet District Council,19/05/2015,384705,1440.00,,P W Judges & Son,JUD004,Operational Services,Revenue,"Equip, Furniture And Materials",Horticultural,
http://thanet.gov.uk/supplierspend,Thanet District Council,19/05/2015,384484,378.24,,Parkeon Limited,PAR063,Community Services,Revenue,"Equip, Furniture And Materials",Street And Traffic Management,
http://thanet.gov.uk/supplierspend,Thanet District Council,19/05/2015,384484,1153.60,,Parkeon Limited,PAR063,Operational Services,Revenue,"Equip, Furniture And Materials",Street And Traffic Management,
http://thanet.gov.uk/supplierspend,Thanet District Council,19/05/2015,384859,2097.50,,Paul Tarplett,TAR006,Corporate Resources and S151,Revenue,Training,Consultancy,
http://thanet.gov.uk/supplierspend,Thanet District Council,19/05/2015,384456,257.88,,Phoenix Software Ltd,PHO002,Community Services,Revenue,"Print, Stat And Gen Off Exps",Ict,
http://thanet.gov.uk/supplierspend,Thanet District Council,19/05/2015,384007,1032.50,,R Cannon,CAN007,Operational Services,Revenue,Services,Maritime Services,
http://thanet.gov.uk/supplierspend,Thanet District Council,19/05/2015,384465,1310.00,,Rackspace Limited,RAC006,East Kent Shared Services,Revenue,Communications & Computing,Ict,
http://thanet.gov.uk/supplierspend,Thanet District Council,19/05/2015,385031,4000.00,,Ramsgate Town Council,RAM031,Operational Services,Revenue,Services,Various Cats-Public Sector,
http://thanet.gov.uk/supplierspend,Thanet District Council,19/05/2015,385025,10000.00,,REDACTED PERSONAL DATA,MOU006,Corporate Resources and S151,Balance Sheet,Capital Exp-Non Council Assets,Grants,
http://thanet.gov.uk/supplierspend,Thanet District Council,19/05/2015,N/A,736.47,,REDACTED PERSONAL DATA,N/A,Operational Services,Revenue,Car Allowances,Non Trade Payee,
http://thanet.gov.uk/supplierspend,Thanet District Council,19/05/2015,N/A,824.61,,REDACTED PERSONAL DATA,N/A,East Kent Shared Services,Revenue,Car Allowances,Non Trade Payee,
http://thanet.gov.uk/supplierspend,Thanet District Council,19/05/2015,N/A,690.14,,REDACTED PERSONAL DATA,N/A,Community Services,Revenue,Car Allowances,Non Trade Payee,
http://thanet.gov.uk/supplierspend,Thanet District Council,19/05/2015,N/A,292.88,,REDACTED PERSONAL DATA,N/A,Operational Services,Revenue,Car Allowances,Non Trade Payee,
http://thanet.gov.uk/supplierspend,Thanet District Council,19/05/2015,N/A,385.72,,REDACTED PERSONAL DATA,N/A,Community Services,Revenue,Car Allowances,Non Trade Payee,
http://thanet.gov.uk/supplierspend,Thanet District Council,19/05/2015,N/A,778.06,,REDACTED PERSONAL DATA,N/A,Community Services,Revenue,Car Allowances,Non Trade Payee,
http://thanet.gov.uk/supplierspend,Thanet District Council,19/05/2015,N/A,670.29,,REDACTED PERSONAL DATA,N/A,Community Services,Revenue,Car Allowances,Non Trade Payee,
http://thanet.gov.uk/supplierspend,Thanet District Council,19/05/2015,N/A,441.5,,REDACTED PERSONAL DATA,N/A,Operational Services,Revenue,Car Allowances,Non Trade Payee,
http://thanet.gov.uk/supplierspend,Thanet District Council,19/05/2015,N/A,298.34,,REDACTED PERSONAL DATA,N/A,Operational Services,Revenue,Car Allowances,Non Trade Payee,
http://thanet.gov.uk/supplierspend,Thanet District Council,19/05/2015,N/A,257.15,,REDACTED PERSONAL DATA,N/A,Community Services,Revenue,Car Allowances,Non Trade Payee,
http://thanet.gov.uk/supplierspend,Thanet District Council,19/05/2015,N/A,362.63,,REDACTED PERSONAL DATA,N/A,Community Services,Revenue,Car Allowances,Non Trade Payee,
http://thanet.gov.uk/supplierspend,Thanet District Council,19/05/2015,N/A,416.92,,REDACTED PERSONAL DATA,N/A,East Kent Shared Services,Revenue,Car Allowances,Non Trade Payee,
http://thanet.gov.uk/supplierspend,Thanet District Council,19/05/2015,N/A,395.97,,REDACTED PERSONAL DATA,N/A,East Kent Shared Services,Revenue,Car Allowances,Non Trade Payee,
http://thanet.gov.uk/supplierspend,Thanet District Council,19/05/2015,384383,415.00,,Riggers Limited,RIG008,Corporate Resources and S151,Balance Sheet,Capital Exp-Non Council Assets,Clothing,
http://thanet.gov.uk/supplierspend,Thanet District Council,19/05/2015,384444,400.00,,Rippleffect,RIP001,Community Services,Revenue,Communications & Computing,Ict,
http://thanet.gov.uk/supplierspend,Thanet District Council,19/05/2015,383857,209.72,,Royal Mail,ROY004,Corporate Resources and S151,Revenue,Communications & Computing,Mail Services,
http://thanet.gov.uk/supplierspend,Thanet District Council,19/05/2015,384424,3284.06,,Royal Mail,ROY004,Community Services,Revenue,Communications & Computing,Mail Services,
http://thanet.gov.uk/supplierspend,Thanet District Council,19/05/2015,384489,982.62,,Santander Uk Plc,SAN019,Community Services,Revenue,"Print, Stat And Gen Off Exps",Financial Services,
http://thanet.gov.uk/supplierspend,Thanet District Council,19/05/2015,383996,1350.00,,Savills (Uk) Limited,SAV007,Corporate Resources and S151,Balance Sheet,Repairs And Mtce Holding A/C,Facilities And Mangement Serv,
http://thanet.gov.uk/supplierspend,Thanet District Council,19/05/2015,384337,1043.97,,Sba Ltd,SBA001,Operational Services,Revenue,"Clothes, Uniforms & Laundry",Clothing,
http://thanet.gov.uk/supplierspend,Thanet District Council,19/05/2015,383971,1200.00,,Sjr Pm Solutions Limited,SJR001,East Kent Shared Services,Revenue,Services,Ict,
http://thanet.gov.uk/supplierspend,Thanet District Council,19/05/2015,384332,1400.00,,Sjr Pm Solutions Limited,SJR001,East Kent Shared Services,Revenue,Services,Ict,
http://thanet.gov.uk/supplierspend,Thanet District Council,19/05/2015,384968,398.00,,Solace Ltd,SOL001,Chief Executive,Revenue,Grants & Subscriptions,Financial Services,
http://thanet.gov.uk/supplierspend,Thanet District Council,19/05/2015,384922,316.11,,Southern Water,SWA001,Operational Services,Revenue,Water Services,Utilities,
http://thanet.gov.uk/supplierspend,Thanet District Council,19/05/2015,384931,1345.99,,Southern Water,SWA001,Operational Services,Revenue,Water Services,Utilities,
http://thanet.gov.uk/supplierspend,Thanet District Council,19/05/2015,384933,1030.70,,Southern Water,SWA001,Operational Services,Revenue,Water Services,Utilities,
http://thanet.gov.uk/supplierspend,Thanet District Council,19/05/2015,384019,6439.00,,Steton Associated Works Limited,STE036,Community Services,Revenue,"Repairs,  Alter & Mtce - Build",Building Construction Material,
http://thanet.gov.uk/supplierspend,Thanet District Council,19/05/2015,384546,4500.00,,Strutt & Parker Llp,STR036,Community Services,Revenue,Services,Consultancy,
http://thanet.gov.uk/supplierspend,Thanet District Council,19/05/2015,384340,460.16,,Tennant Uk Cleaning Solutions Ltd,TEN006,Operational Services,Revenue,Direct Transport Costs,Vehicle Management,
http://thanet.gov.uk/supplierspend,Thanet District Council,19/05/2015,384479,6276.92,,The Gpm Partnership Limited,GPM001,Corporate Resources and S151,Balance Sheet,Other Land And Buildings-Hra,Consultancy,
http://thanet.gov.uk/supplierspend,Thanet District Council,19/05/2015,384741,1750.00,,Thomson Snell & Passmore,THO016,Community Services,Revenue,Services,Legal Services,
http://thanet.gov.uk/supplierspend,Thanet District Council,19/05/2015,384300,267.21,,Total Supplies Ltd,TOT009,Corporate Resources and S151,Revenue,Cleaning & Domestic Supplies,Cleaning And Janitorial,
http://thanet.gov.uk/supplierspend,Thanet District Council,19/05/2015,384511,1666.67,,Tourism Works,TOU007,Community Services,Revenue,Services,Facilities And Mangement Serv,
http://thanet.gov.uk/supplierspend,Thanet District Council,19/05/2015,383972,8400.00,,Umbraco,UMB001,East Kent Shared Services,Revenue,Communications & Computing,Ict,
http://thanet.gov.uk/supplierspend,Thanet District Council,19/05/2015,384874,261.92,,Viridor Waste Management Ltd,VIR003,Community Services,Revenue,Cleaning & Domestic Supplies,Environmental Services,
http://thanet.gov.uk/supplierspend,Thanet District Council,19/05/2015,384411,400.00,,Visit Kent Ltd,VIS005,Community Services,Revenue,Services,Arts And Leisure Services,
http://thanet.gov.uk/supplierspend,Thanet District Council,19/05/2015,384306,240.00,,W Brazil & Bros,BRA001,Operational Services,Revenue,Services,Environmental Services,
http://thanet.gov.uk/supplierspend,Thanet District Council,19/05/2015,384723,450.00,,W Brazil & Bros,BRA001,Corporate Resources and S151,Balance Sheet,Repairs And Mtce Holding A/C,Environmental Services,
http://thanet.gov.uk/supplierspend,Thanet District Council,19/05/2015,385027,2000.00,,Westbrook Traders Association,WTA001,Operational Services,Revenue,Services,Horticultural,
http://thanet.gov.uk/supplierspend,Thanet District Council,19/05/2015,384417,1441.00,,Your Leisure Kent Limited,YOU016,Operational Services,Revenue,Services,Arts And Leisure Services,
http://thanet.gov.uk/supplierspend,Thanet District Council,20/05/2015,385232,237004.00,,Kent & Medway Towns Fire Authority,KMT001,Corporate Resources and S151,Balance Sheet,Collection Fund - Preceptors,Various Cats-Public Sector,
http://thanet.gov.uk/supplierspend,Thanet District Council,20/05/2015,385231,3663427.00,,Kent County Council,KCC022,Corporate Resources and S151,Balance Sheet,Collection Fund - Preceptors,Various Cats-Public Sector,
http://thanet.gov.uk/supplierspend,Thanet District Council,20/05/2015,385233,495882.00,,Kent Police & Crime Commissioner,KPA003,Corporate Resources and S151,Balance Sheet,Collection Fund - Preceptors,Various Cats-Public Sector,
http://thanet.gov.uk/supplierspend,Thanet District Council,22/05/2015,385379,31500.00,,Adrian Fisher Design Limited,ADR001,Corporate Resources and S151,Balance Sheet,Other Land And Buildings-Hra,Arts And Leisure Services,
http://thanet.gov.uk/supplierspend,Thanet District Council,22/05/2015,383946,10220.00,,Dover District Council,DOV001,Corporate Resources and S151,Revenue,Employee Related Schemes,Various Cats-Public Sector,
http://thanet.gov.uk/supplierspend,Thanet District Council,22/05/2015,383947,2438.65,,Dover District Council,DOV001,Corporate Resources and S151,Revenue,Employee Related Schemes,Various Cats-Public Sector,
http://thanet.gov.uk/supplierspend,Thanet District Council,22/05/2015,384022,7350.00,,John H Rundle Limited,RUN006,Corporate Resources and S151,Balance Sheet,Other Land And Buildings-Hra,Building Construction Material,
http://thanet.gov.uk/supplierspend,Thanet District Council,22/05/2015,383988,291.50,,St Philips Church P P C,STP007,Corporate Resources and S151,Revenue,Rents,Facilities And Mangement Serv,
http://thanet.gov.uk/supplierspend,Thanet District Council,22/05/2015,385428,3067.38,,Standage & Co Limited,STA058,Corporate Resources and S151,Balance Sheet,Council Dwellings,Construction-Repair And Maint,
http://thanet.gov.uk/supplierspend,Thanet District Council,22/05/2015,385429,10186.36,,Standage & Co Limited,STA058,Corporate Resources and S151,Balance Sheet,Council Dwellings,Construction-Repair And Maint,
http://thanet.gov.uk/supplierspend,Thanet District Council,22/05/2015,384009,285.00,,Thornton Bobby Limited,THO009,Corporate Resources and S151,Revenue,"Equip, Furniture And Materials",Domestic Goods,
http://thanet.gov.uk/supplierspend,Thanet District Council,22/05/2015,385423,41534.71,,W W Martin (Thanet) Ltd,MAR003,Corporate Resources and S151,Balance Sheet,Council Dwellings,Construction-Repair And Maint,
http://thanet.gov.uk/supplierspend,Thanet District Council,22/05/2015,385424,47031.23,,W W Martin (Thanet) Ltd,MAR003,Corporate Resources and S151,Balance Sheet,Council Dwellings,Construction-Repair And Maint,
http://thanet.gov.uk/supplierspend,Thanet District Council,22/05/2015,385425,47179.08,,W W Martin (Thanet) Ltd,MAR003,Corporate Resources and S151,Balance Sheet,Council Dwellings,Construction-Repair And Maint,
http://thanet.gov.uk/supplierspend,Thanet District Council,26/05/2015,PC6874,100.66,,1&1 Internet Ltd,N/A,East Kent Shared Services,Revenue,"Equip, Furniture And Materials",ICT,
http://thanet.gov.uk/supplierspend,Thanet District Council,26/05/2015,PC6821,27.92,,123 Reg,N/A,Community Services,Revenue,Communications & Computing,ICT,
http://thanet.gov.uk/supplierspend,Thanet District Council,26/05/2015,PC6853,129.00,,AJ Products (Uk) Ltd,N/A,Community Services,Revenue,"Equip, Furniture And Materials",Facilities And Management Serv,
http://thanet.gov.uk/supplierspend,Thanet District Council,26/05/2015,PC6818,25.63,,Amazon,N/A,Corporate Resources and S151,Revenue,Communications & Computing,Stationery,
http://thanet.gov.uk/supplierspend,Thanet District Council,26/05/2015,PC6877,15.82,,Amazon,N/A,Corporate Resources and S151,Revenue,Communications & Computing,Stationery,
http://thanet.gov.uk/supplierspend,Thanet District Council,26/05/2015,PC6884,11.55,1.93,Amazon,N/A,East Kent Shared Services,Revenue,"Equip, Furniture And Materials",Stationery,
http://thanet.gov.uk/supplierspend,Thanet District Council,26/05/2015,PC6794,4.98,0.83,Amazon ,N/A,Chief Executive,Revenue,Agency Staff,Stationery,
http://thanet.gov.uk/supplierspend,Thanet District Council,26/05/2015,PC6760,23.51,,Amazon Europe,N/A,Corporate Resources and S151,Revenue,"Print, Stat And Gen Off Exps",Stationery,
http://thanet.gov.uk/supplierspend,Thanet District Council,26/05/2015,PC6793,41.04,6.84,Amazon Europe,N/A,Corporate Resources and S151,Revenue,"Print, Stat And Gen Off Exps",Stationery,
http://thanet.gov.uk/supplierspend,Thanet District Council,26/05/2015,PC6822,13.20,2.20,Amazon Svcs Europe,N/A,Operational Services,Revenue,"Equip, Furniture And Materials",Stationery,
http://thanet.gov.uk/supplierspend,Thanet District Council,26/05/2015,PC6823,2.95,0.49,Amazon Svcs Europe,N/A,Operational Services,Revenue,Communications & Computing,Stationery,
http://thanet.gov.uk/supplierspend,Thanet District Council,26/05/2015,PC6825,4.40,0.74,Amazon Svcs Europe,N/A,Operational Services,Revenue,Communications & Computing,Stationery,
http://thanet.gov.uk/supplierspend,Thanet District Council,26/05/2015,PC6837,22.98,3.83,Amazon Svcs Europe,N/A,Operational Services,Revenue,"Print, Stat And Gen Off Exps",Stationery,
http://thanet.gov.uk/supplierspend,Thanet District Council,26/05/2015,PC6854,5.79,,Amazon Svcs Europe,N/A,Operational Services,Revenue,"Equip, Furniture And Materials",Stationery,
http://thanet.gov.uk/supplierspend,Thanet District Council,26/05/2015,PC6913,4.94,0.83,Amazon Svcs Europe,N/A,Operational Services,Revenue,"Equip, Furniture And Materials",Stationery,
http://thanet.gov.uk/supplierspend,Thanet District Council,26/05/2015,PC6810,78.95,,Amazon Svcs Europe ,N/A,Operational Services,Revenue,"Equip, Furniture And Materials",Stationery,
http://thanet.gov.uk/supplierspend,Thanet District Council,26/05/2015,PC6812,13.33,,Amazon Svcs Europe ,N/A,Operational Services,Revenue,"Print, Stat And Gen Off Exps",Stationery,
http://thanet.gov.uk/supplierspend,Thanet District Council,26/05/2015,PC6824,2.46,,Amazon Svcs Europe ,N/A,Operational Services,Revenue,Communications & Computing,Stationery,
http://thanet.gov.uk/supplierspend,Thanet District Council,26/05/2015,PC6761,9.99,,Amazon Uk,N/A,Corporate Resources and S151,Revenue,"Print, Stat And Gen Off Exps",Stationery,
http://thanet.gov.uk/supplierspend,Thanet District Council,26/05/2015,PC6767,18.31,,Amazon Uk Retail,N/A,Community Services,Revenue,"Print, Stat And Gen Off Exps",Stationery,
http://thanet.gov.uk/supplierspend,Thanet District Council,26/05/2015,PC6807,9.17,,Asda,N/A,Community Services,Revenue,"Equip, Furniture And Materials",Catering,
http://thanet.gov.uk/supplierspend,Thanet District Council,26/05/2015,PC6883,3.00,0.50,Asda,N/A,East Kent Shared Services,Revenue,"Equip, Furniture And Materials",Catering,
http://thanet.gov.uk/supplierspend,Thanet District Council,26/05/2015,PC6898,8.30,,Asda,N/A,Community Services,Revenue,"Equip, Furniture And Materials",Catering,
http://thanet.gov.uk/supplierspend,Thanet District Council,26/05/2015,PC6878,7.90,,Atlassian,N/A,East Kent Shared Services,Revenue,Communications & Computing,ICT,
http://thanet.gov.uk/supplierspend,Thanet District Council,26/05/2015,PC6910,50.62,8.44,B & Q,N/A,Corporate Resources and S151,Revenue,"Print, Stat And Gen Off Exps",Building Construction Materials,
http://thanet.gov.uk/supplierspend,Thanet District Council,26/05/2015,PC6838,50.62,,B & Q Margate,N/A,Corporate Resources and S151,Revenue,"Print, Stat And Gen Off Exps",Building Construction Materials,
http://thanet.gov.uk/supplierspend,Thanet District Council,26/05/2015,PC6813,1643.99,,Billetto Uk,N/A,East Kent Shared Services,Revenue,Expenses,Human Resources,
http://thanet.gov.uk/supplierspend,Thanet District Council,26/05/2015,PC6917,8.75,,Billetto Uk,N/A,East Kent Shared Services,Revenue,Expenses,Human Resources,
http://thanet.gov.uk/supplierspend,Thanet District Council,26/05/2015,PC6764,24.75,,Booker Ltd,N/A,Community Services,Revenue,Catering,Catering,
http://thanet.gov.uk/supplierspend,Thanet District Council,26/05/2015,PC6808,43.97,,Booker Ltd,N/A,Community Services,Revenue,"Equip, Furniture And Materials",Catering,
http://thanet.gov.uk/supplierspend,Thanet District Council,26/05/2015,PC6809,3.19,,Booker Ltd,N/A,Community Services,Revenue,Catering,Catering,
http://thanet.gov.uk/supplierspend,Thanet District Council,26/05/2015,PC6746,316.66,,Calumetphoto,N/A,Operational Services,Revenue,"Equip, Furniture And Materials",ICT,
http://thanet.gov.uk/supplierspend,Thanet District Council,26/05/2015,PC6893,150.00,,CIEH,N/A,Community Services,Revenue,Expenses,Human Resources,
http://thanet.gov.uk/supplierspend,Thanet District Council,26/05/2015,PC6920,243.60,,Community Ad Uk,N/A,Community Services,Revenue,Customer And Client Receipts,Facilities And Management Serv,
http://thanet.gov.uk/supplierspend,Thanet District Council,26/05/2015,PC6820,246.45,,Connevans Limited,N/A,East Kent Shared Services,Revenue,"Equip, Furniture And Materials",Facilities And Management Serv,
http://thanet.gov.uk/supplierspend,Thanet District Council,26/05/2015,PC6892,684.16,,Currys,N/A,East Kent Shared Services,Revenue,Communications & Computing,Facilities And Management Serv,
http://thanet.gov.uk/supplierspend,Thanet District Council,26/05/2015,PC6800,359.84,,Dave Fox Motorcycles,N/A,Operational Services,Revenue,"Equip, Furniture And Materials",Vehicle Management,
http://thanet.gov.uk/supplierspend,Thanet District Council,26/05/2015,PC6801,29.65,,Dave Fox Motorcycles,N/A,Operational Services,Revenue,"Equip, Furniture And Materials",Vehicle Management,
http://thanet.gov.uk/supplierspend,Thanet District Council,26/05/2015,PC6826,73.50,,Dell,N/A,Corporate Resources and S151,Revenue,"Print, Stat And Gen Off Exps",Stationery,
http://thanet.gov.uk/supplierspend,Thanet District Council,26/05/2015,PC6862,975.00,,Direct365,N/A,Corporate Resources and S151,Revenue,"Equip, Furniture And Materials",Healthcare,
http://thanet.gov.uk/supplierspend,Thanet District Council,26/05/2015,PC6745,66.63,,Dropbox,N/A,Chief Executive,Revenue,Communications & Computing,ICT,
http://thanet.gov.uk/supplierspend,Thanet District Council,26/05/2015,PC6782,227.50,,DVLA,N/A,Operational Services,Revenue,Direct Transport Costs,Various Cats - Public Sector,
http://thanet.gov.uk/supplierspend,Thanet District Council,26/05/2015,PC6783,202.50,,DVLA,N/A,Operational Services,Revenue,Direct Transport Costs,Various Cats - Public Sector,
http://thanet.gov.uk/supplierspend,Thanet District Council,26/05/2015,PC6865,167.50,,DVLA,N/A,Operational Services,Revenue,Direct Transport Costs,Various Cats - Public Sector,
http://thanet.gov.uk/supplierspend,Thanet District Council,26/05/2015,PC6866,227.50,,DVLA,N/A,Operational Services,Revenue,Direct Transport Costs,Various Cats - Public Sector,
http://thanet.gov.uk/supplierspend,Thanet District Council,26/05/2015,PC6830,25.41,,Elepos,N/A,East Kent Shared Services,Revenue,"Equip, Furniture And Materials",Stationery,
http://thanet.gov.uk/supplierspend,Thanet District Council,26/05/2015,PC6863,600.00,,EMAP Publishing Ltd,N/A,Operational Services,Revenue,Salaries,Facilities And Management Serv,
http://thanet.gov.uk/supplierspend,Thanet District Council,26/05/2015,PC6914,410.00,,Environment Agency,N/A,Operational Services,Revenue,Cont Hire & Operating Lease,Enivronmental Services,
http://thanet.gov.uk/supplierspend,Thanet District Council,26/05/2015,PC6894,158.45,,EV Connectors,N/A,Community Services,Revenue,Direct Transport Costs,Vehicle Management,
http://thanet.gov.uk/supplierspend,Thanet District Council,26/05/2015,PC6763,30.00,,F J Rogers,N/A,Community Services,Revenue,"Equip, Furniture And Materials",Facilities And Management Serv,
http://thanet.gov.uk/supplierspend,Thanet District Council,26/05/2015,PC6849,274.00,,FGW Websales,N/A,East Kent Shared Services,Revenue,Public Transport,Human Resources,
http://thanet.gov.uk/supplierspend,Thanet District Council,26/05/2015,PC6882,108.00,,Frontline Safety Uk Ltd,N/A,Community Services,Revenue,"Equip, Furniture And Materials",Health And Safety,
http://thanet.gov.uk/supplierspend,Thanet District Council,26/05/2015,PC6803,48.00,8.00,Grant Haze,N/A,Operational Services,Revenue,"Clothes, Uniforms & Laundry",Clothing,
http://thanet.gov.uk/supplierspend,Thanet District Council,26/05/2015,PC6747,756.00,,HM Courts Service,N/A,East Kent Shared Services,Revenue,Services,Various Cats - Public Sector,
http://thanet.gov.uk/supplierspend,Thanet District Council,26/05/2015,PC6748,75.00,,HM Courts Service,N/A,East Kent Shared Services,Revenue,Services,Various Cats - Public Sector,
http://thanet.gov.uk/supplierspend,Thanet District Council,26/05/2015,PC6749,75.00,,HM Courts Service,N/A,East Kent Shared Services,Revenue,Services,Various Cats - Public Sector,
http://thanet.gov.uk/supplierspend,Thanet District Council,26/05/2015,PC6754,72.00,,HM Courts Service,N/A,East Kent Shared Services,Revenue,Services,Various Cats - Public Sector,
http://thanet.gov.uk/supplierspend,Thanet District Council,26/05/2015,PC6755,39.00,,HM Courts Service,N/A,East Kent Shared Services,Revenue,Services,Various Cats - Public Sector,
http://thanet.gov.uk/supplierspend,Thanet District Council,26/05/2015,PC6756,21.00,,HM Courts Service,N/A,East Kent Shared Services,Revenue,Services,Various Cats - Public Sector,
http://thanet.gov.uk/supplierspend,Thanet District Council,26/05/2015,PC6757,1191.00,,HM Courts Service,N/A,East Kent Shared Services,Revenue,Services,Various Cats - Public Sector,
http://thanet.gov.uk/supplierspend,Thanet District Council,26/05/2015,PC6758,2316.00,,HM Courts Service,N/A,East Kent Shared Services,Revenue,Services,Various Cats - Public Sector,
http://thanet.gov.uk/supplierspend,Thanet District Council,26/05/2015,PC6768,515.00,,HM Courts Service,N/A,Community Services,Revenue,Services,Various Cats - Public Sector,
http://thanet.gov.uk/supplierspend,Thanet District Council,26/05/2015,PC6859,245.00,,HM Courts Service,N/A,East Kent Shared Services,Revenue,Services,Various Cats - Public Sector,
http://thanet.gov.uk/supplierspend,Thanet District Council,26/05/2015,PC6886,270.00,,HM Courts Service,N/A,East Kent Shared Services,Revenue,Services,Various Cats - Public Sector,
http://thanet.gov.uk/supplierspend,Thanet District Council,26/05/2015,PC6887,24.00,,HM Courts Service,N/A,East Kent Shared Services,Revenue,Services,Various Cats - Public Sector,
http://thanet.gov.uk/supplierspend,Thanet District Council,26/05/2015,PC6888,6.00,,HM Courts Service,N/A,East Kent Shared Services,Revenue,Services,Various Cats - Public Sector,
http://thanet.gov.uk/supplierspend,Thanet District Council,26/05/2015,PC6889,3795.00,,HM Courts Service,N/A,East Kent Shared Services,Revenue,Services,Various Cats - Public Sector,
http://thanet.gov.uk/supplierspend,Thanet District Council,26/05/2015,PC6890,1176.00,,HM Courts Service,N/A,East Kent Shared Services,Revenue,Services,Various Cats - Public Sector,
http://thanet.gov.uk/supplierspend,Thanet District Council,26/05/2015,PC6891,2064.00,,HM Courts Service,N/A,East Kent Shared Services,Revenue,Services,Various Cats - Public Sector,
http://thanet.gov.uk/supplierspend,Thanet District Council,26/05/2015,PC6249,174.17,,Holiday Inn  Leicester,N/A,Corporate Resources and S151,Revenue,Training,Human Resources,
http://thanet.gov.uk/supplierspend,Thanet District Council,26/05/2015,PC6700,103.33,,Holiday Inn  Leicester,N/A,Corporate Resources and S151,Revenue,Training,Human Resources,
http://thanet.gov.uk/supplierspend,Thanet District Council,26/05/2015,PC6833,920.08,,Holiday Inn Birmingham,N/A,Operational Services,Revenue,Miscellaneous Expenses,Human Resources,
http://thanet.gov.uk/supplierspend,Thanet District Council,26/05/2015,PC6858,28.49,4.75,Homebase Ltd,N/A,Community Services,Revenue,"Equip, Furniture And Materials",Building Construction Materials,
http://thanet.gov.uk/supplierspend,Thanet District Council,26/05/2015,PC6839,157.85,26.31,Ibis Hotel,N/A,Corporate Resources and S151,Revenue,Training,Human Resources,
http://thanet.gov.uk/supplierspend,Thanet District Council,26/05/2015,PC6784,99.00,,Jobs In Kent,N/A,East Kent Shared Services,Revenue,Advertising Expenses,Facilities And Management Serv,
http://thanet.gov.uk/supplierspend,Thanet District Council,26/05/2015,PC6798,10.00,,Marks & Spencer,N/A,Operational Services,Revenue,Catering,Facilities And Management Serv,
http://thanet.gov.uk/supplierspend,Thanet District Council,26/05/2015,PC6843,5.68,,Martells Ltd,N/A,Operational Services,Revenue,"Equip, Furniture And Materials",Stationery,
http://thanet.gov.uk/supplierspend,Thanet District Council,26/05/2015,PC6895,58.90,9.82,MBH Trading Ltd,N/A,Corporate Resources and S151,Revenue,Communications & Computing,Stationery,
http://thanet.gov.uk/supplierspend,Thanet District Council,26/05/2015,PC6835,12.15,,Moto Toddington S/W Bk,N/A,Operational Services,Revenue,Miscellaneous Expenses,Human Resources,
http://thanet.gov.uk/supplierspend,Thanet District Council,26/05/2015,PC6855,481.95,80.33,Park Plaza Westminster,N/A,East Kent Shared Services,Revenue,Expenses,Human Resources,
http://thanet.gov.uk/supplierspend,Thanet District Council,26/05/2015,PC6860,239.00,,Paypal - Dan Slee C2 Ltd,N/A,Chief Executive,Revenue,Expenses,Human Resources,
http://thanet.gov.uk/supplierspend,Thanet District Council,26/05/2015,PC6795,80.83,,PCS Computer Supplies,N/A,East Kent Shared Services,Revenue,Communications & Computing,ICT,
http://thanet.gov.uk/supplierspend,Thanet District Council,26/05/2015,PC6785,250.00,,Possession Claims Online,N/A,Community Services,Revenue,Services,Various Cats - Public Sector,
http://thanet.gov.uk/supplierspend,Thanet District Council,26/05/2015,PC6786,250.00,,Possession Claims Online,N/A,Community Services,Revenue,Services,Various Cats - Public Sector,
http://thanet.gov.uk/supplierspend,Thanet District Council,26/05/2015,PC6787,250.00,,Possession Claims Online,N/A,Community Services,Revenue,Services,Various Cats - Public Sector,
http://thanet.gov.uk/supplierspend,Thanet District Council,26/05/2015,PC6788,250.00,,Possession Claims Online,N/A,Community Services,Revenue,Services,Various Cats - Public Sector,
http://thanet.gov.uk/supplierspend,Thanet District Council,26/05/2015,PC6789,250.00,,Possession Claims Online,N/A,Community Services,Revenue,Services,Various Cats - Public Sector,
http://thanet.gov.uk/supplierspend,Thanet District Council,26/05/2015,PC6790,250.00,,Possession Claims Online,N/A,Community Services,Revenue,Services,Various Cats - Public Sector,
http://thanet.gov.uk/supplierspend,Thanet District Council,26/05/2015,PC6802,110.00,,Possession Claims Online,N/A,Community Services,Revenue,Services,Various Cats - Public Sector,
http://thanet.gov.uk/supplierspend,Thanet District Council,26/05/2015,PC6922,75.53,,Prokart Engine Parts,N/A,Operational Services,Revenue,"Equip, Furniture And Materials",Vehicle Management,
http://thanet.gov.uk/supplierspend,Thanet District Council,26/05/2015,PC6856,35.20,,RIBA Enterprises Ltd.,N/A,Operational Services,Revenue,"Print, Stat And Gen Off Exps",Stationery,
http://thanet.gov.uk/supplierspend,Thanet District Council,26/05/2015,PC6766,68.00,,Royal British Legion Poppy Appeal,N/A,Chief Executive,Revenue,Services,Non Trade Payee,
http://thanet.gov.uk/supplierspend,Thanet District Council,26/05/2015,PC6773,39.55,,Royal Mail,N/A,Community Services,Revenue,Communications & Computing,Mail Services,
http://thanet.gov.uk/supplierspend,Thanet District Council,26/05/2015,PC6834,30.00,,Rye Hill S/S,N/A,Operational Services,Revenue,Miscellaneous Expenses,Vehicle Management,
http://thanet.gov.uk/supplierspend,Thanet District Council,26/05/2015,PC6814,235.96,,Safety Gloves,N/A,Operational Services,Revenue,"Clothes, Uniforms & Laundry",Clothing,
http://thanet.gov.uk/supplierspend,Thanet District Council,26/05/2015,PC6827,-235.96,,Safety Gloves,N/A,Operational Services,Revenue,"Clothes, Uniforms & Laundry",Clothing,
http://thanet.gov.uk/supplierspend,Thanet District Council,26/05/2015,PC6815,42.75,7.13,Sainsburys,N/A,Operational Services,Revenue,Catering,Catering,
http://thanet.gov.uk/supplierspend,Thanet District Council,26/05/2015,PC6816,3.00,0.50,Sainsburys,N/A,Operational Services,Revenue,Catering,Catering,
http://thanet.gov.uk/supplierspend,Thanet District Council,26/05/2015,PC6817,66.05,11.01,Sainsburys,N/A,Operational Services,Revenue,Catering,Catering,
http://thanet.gov.uk/supplierspend,Thanet District Council,26/05/2015,PC6840,44.58,,Sainsburys,N/A,Corporate Resources and S151,Revenue,Direct Transport Costs,Catering,
http://thanet.gov.uk/supplierspend,Thanet District Council,26/05/2015,PC6852,44.97,,Sainsburys,N/A,Corporate Resources and S151,Revenue,Direct Transport Costs,Catering,
http://thanet.gov.uk/supplierspend,Thanet District Council,26/05/2015,PC6845,1.69,0.28,Savers Health & Beauty Ltd,N/A,Corporate Resources and S151,Revenue,"Print, Stat And Gen Off Exps",Healthcare,
http://thanet.gov.uk/supplierspend,Thanet District Council,26/05/2015,PC6846,1.69,0.28,Savers Health & Beauty Ltd,N/A,Corporate Resources and S151,Revenue,"Print, Stat And Gen Off Exps",Healthcare,
http://thanet.gov.uk/supplierspend,Thanet District Council,26/05/2015,PC6847,1.69,0.28,Savers Health & Beauty Ltd,N/A,Corporate Resources and S151,Revenue,"Print, Stat And Gen Off Exps",Healthcare,
http://thanet.gov.uk/supplierspend,Thanet District Council,26/05/2015,PC6848,1.69,0.29,Savers Health & Beauty Ltd,N/A,Corporate Resources and S151,Revenue,"Print, Stat And Gen Off Exps",Healthcare,
http://thanet.gov.uk/supplierspend,Thanet District Council,26/05/2015,PC6780,139.98,,Screwfix,N/A,Operational Services,Revenue,"Equip, Furniture And Materials",Building Construction Materials,
http://thanet.gov.uk/supplierspend,Thanet District Council,26/05/2015,PC6781,37.49,,Screwfix,N/A,Operational Services,Revenue,"Equip, Furniture And Materials",Building Construction Materials,
http://thanet.gov.uk/supplierspend,Thanet District Council,26/05/2015,PC6912,33.32,,Screwfix,N/A,Operational Services,Revenue,"Equip, Furniture And Materials",Building Construction Materials,
http://thanet.gov.uk/supplierspend,Thanet District Council,26/05/2015,PC6857,170.00,,Showdata.Com,N/A,Operational Services,Revenue,Miscellaneous Expenses,Catering,
http://thanet.gov.uk/supplierspend,Thanet District Council,26/05/2015,PC6897,139.00,,Shutterstock,N/A,Corporate Resources and S151,Revenue,"Print, Stat And Gen Off Exps",Facilities And Management Serv,
http://thanet.gov.uk/supplierspend,Thanet District Council,26/05/2015,PC6819,7.63,,Standfast,N/A,Community Services,Revenue,"Equip, Furniture And Materials",Facilities And Management Serv,
http://thanet.gov.uk/supplierspend,Thanet District Council,26/05/2015,PC6871,5.70,0.95,Standfast,N/A,Operational Services,Revenue,Expenses,Facilities And Management Serv,
http://thanet.gov.uk/supplierspend,Thanet District Council,26/05/2015,PC6861,40.00,,Sussex Wildlife Trust,N/A,Operational Services,Revenue,Training,Human Resources,
http://thanet.gov.uk/supplierspend,Thanet District Council,26/05/2015,PC6831,129.58,,Tesco,N/A,Operational Services,Revenue,Miscellaneous Expenses,Catering,
http://thanet.gov.uk/supplierspend,Thanet District Council,26/05/2015,PC6836,280.00,,Thanet County Court,N/A,Community Services,Revenue,Services,Various Cats - Public Sector,
http://thanet.gov.uk/supplierspend,Thanet District Council,26/05/2015,PC6868,100.00,,Thanet County Court,N/A,Community Services,Revenue,Services,Various Cats - Public Sector,
http://thanet.gov.uk/supplierspend,Thanet District Council,26/05/2015,PC6869,100.00,,Thanet County Court,N/A,Community Services,Revenue,Services,Various Cats - Public Sector,
http://thanet.gov.uk/supplierspend,Thanet District Council,26/05/2015,PC6870,50.00,,Thanet County Court,N/A,Operational Services,Revenue,Services,Various Cats - Public Sector,
http://thanet.gov.uk/supplierspend,Thanet District Council,26/05/2015,PC6880,8.33,,Timpson,N/A,Community Services,Revenue,Fixtures & Fittings,Facilities And Management Serv,
http://thanet.gov.uk/supplierspend,Thanet District Council,26/05/2015,PC6828,46.10,,Toolstation,N/A,Community Services,Revenue,"Equip, Furniture And Materials",Building Construction Materials,
http://thanet.gov.uk/supplierspend,Thanet District Council,26/05/2015,PC6829,9.03,,Toolstation,N/A,Community Services,Revenue,"Equip, Furniture And Materials",Building Construction Materials,
http://thanet.gov.uk/supplierspend,Thanet District Council,26/05/2015,PC6791,18.65,,Total Supplies Ltd,N/A,Operational Services,Revenue,"Equip, Furniture And Materials",Cleaning And Janitorial,
http://thanet.gov.uk/supplierspend,Thanet District Council,26/05/2015,PC6876,48.44,,Total Supplies Ltd,N/A,Community Services,Revenue,"Equip, Furniture And Materials",Cleaning And Janitorial,
http://thanet.gov.uk/supplierspend,Thanet District Council,26/05/2015,PC6792,249.00,,Totaljobs Group Ltd,N/A,East Kent Shared Services,Revenue,Advertising Expenses,Facilities And Management Serv,
http://thanet.gov.uk/supplierspend,Thanet District Council,26/05/2015,PC6873,10.00,,Totaljobs Group Ltd,N/A,East Kent Shared Services,Revenue,Advertising Expenses,Facilities And Management Serv,
http://thanet.gov.uk/supplierspend,Thanet District Council,26/05/2015,PC6851,11.50,,Transport for London,N/A,Chief Executive,Revenue,#N/A,Human Resources,
http://thanet.gov.uk/supplierspend,Thanet District Council,26/05/2015,PC6915,11.50,,Transport for London,N/A,Chief Executive,Revenue,#N/A,Human Resources,
http://thanet.gov.uk/supplierspend,Thanet District Council,26/05/2015,PC6864,22.00,,Tunbridge Wells Certificate Office,N/A,East Kent Shared Services,Revenue,Services,Various Cats - Public Sector,
http://thanet.gov.uk/supplierspend,Thanet District Council,26/05/2015,PC6844,139.00,,Ukinbound,N/A,Community Services,Revenue,Expenses,Human Resources,
http://thanet.gov.uk/supplierspend,Thanet District Council,26/05/2015,PC6751,170.50,,Virgin Trains,N/A,East Kent Shared Services,Revenue,Public Transport,Human Resources,
http://thanet.gov.uk/supplierspend,Thanet District Council,26/05/2015,PC6762,253.00,,Virgin Trains,N/A,East Kent Shared Services,Revenue,Public Transport,Human Resources,
http://thanet.gov.uk/supplierspend,Thanet District Council,26/05/2015,PC6850,273.00,,Virgin Trains,N/A,East Kent Shared Services,Revenue,Public Transport,Human Resources,
http://thanet.gov.uk/supplierspend,Thanet District Council,26/05/2015,PC6867,27.00,,Virgin Trains,N/A,Operational Services,Revenue,Public Transport,Human Resources,
http://thanet.gov.uk/supplierspend,Thanet District Council,26/05/2015,PC6832,3.75,,Waitrose,N/A,Operational Services,Revenue,Miscellaneous Expenses,Human Resources,
http://thanet.gov.uk/supplierspend,Thanet District Council,26/05/2015,PC6916,13.70,,Waitrose,N/A,Operational Services,Revenue,Miscellaneous Expenses,Human Resources,
http://thanet.gov.uk/supplierspend,Thanet District Council,26/05/2015,PC6752,52.40,,Webtis,N/A,Community Services,Revenue,Public Transport,Human Resources,
http://thanet.gov.uk/supplierspend,Thanet District Council,26/05/2015,PC6753,46.10,,Webtis,N/A,Corporate Resources and S151,Revenue,Public Transport,Human Resources,
http://thanet.gov.uk/supplierspend,Thanet District Council,26/05/2015,PC6774,52.50,,Webtis,N/A,Corporate Resources and S151,Revenue,Public Transport,Human Resources,
http://thanet.gov.uk/supplierspend,Thanet District Council,26/05/2015,PC6775,67.10,,Webtis,N/A,Corporate Resources and S151,Revenue,Public Transport,Human Resources,
http://thanet.gov.uk/supplierspend,Thanet District Council,26/05/2015,PC6796,55.50,,Webtis,N/A,East Kent Shared Services,Revenue,Public Transport,Human Resources,
http://thanet.gov.uk/supplierspend,Thanet District Council,26/05/2015,PC6797,53.90,,Webtis,N/A,Corporate Resources and S151,Revenue,Public Transport,Human Resources,
http://thanet.gov.uk/supplierspend,Thanet District Council,26/05/2015,PC6841,96.20,,Webtis,N/A,Corporate Resources and S151,Revenue,Public Transport,Human Resources,
http://thanet.gov.uk/supplierspend,Thanet District Council,26/05/2015,PC6842,42.80,,Webtis,N/A,Corporate Resources and S151,Revenue,Public Transport,Human Resources,
http://thanet.gov.uk/supplierspend,Thanet District Council,26/05/2015,PC6872,7.23,1.21,Wilko,N/A,Operational Services,Revenue,"Equip, Furniture And Materials",Facilities And Management Serv,
http://thanet.gov.uk/supplierspend,Thanet District Council,26/05/2015,PC6804,85.00,14.17,Wolverhampton Racecourse,N/A,East Kent Shared Services,Revenue,Expenses,Human Resources,
http://thanet.gov.uk/supplierspend,Thanet District Council,26/05/2015,PC6805,85.00,14.17,Wolverhampton Racecourse,N/A,East Kent Shared Services,Revenue,Expenses,Human Resources,
http://thanet.gov.uk/supplierspend,Thanet District Council,26/05/2015,PC6806,85.00,14.17,Wolverhampton Racecourse,N/A,East Kent Shared Services,Revenue,Expenses,Human Resources,
http://thanet.gov.uk/supplierspend,Thanet District Council,27/05/2015,384926,1343.66,,Afs (Security) Limited,AFS002,Operational Services,Revenue,"Equip, Furniture And Materials",Facilities And Mangement Serv,
http://thanet.gov.uk/supplierspend,Thanet District Council,27/05/2015,384310,473.00,,All Access Ltd,ALL031,Community Services,Revenue,Services,Building Construction Material,
http://thanet.gov.uk/supplierspend,Thanet District Council,27/05/2015,385531,670.90,,Allstar Business Solutions Ltd,ALL038,Operational Services,Revenue,Direct Transport Costs,Vehicle Management,
http://thanet.gov.uk/supplierspend,Thanet District Council,27/05/2015,385249,605.00,,Aston Walker,AST008,Community Services,Revenue,Services,Cemetery And Crematorium,
http://thanet.gov.uk/supplierspend,Thanet District Council,27/05/2015,385250,605.00,,Aston Walker,AST008,Community Services,Revenue,Services,Cemetery And Crematorium,
http://thanet.gov.uk/supplierspend,Thanet District Council,27/05/2015,385251,605.00,,Aston Walker,AST008,Community Services,Revenue,Services,Cemetery And Crematorium,
http://thanet.gov.uk/supplierspend,Thanet District Council,27/05/2015,384810,750.00,,Bridge Security Cctv Ltd,BRI039,Operational Services,Revenue,Services,Facilities And Mangement Serv,
http://thanet.gov.uk/supplierspend,Thanet District Council,27/05/2015,384812,1544.07,,Bridge Security Cctv Ltd,BRI039,Community Services,Revenue,Services,Facilities And Mangement Serv,
http://thanet.gov.uk/supplierspend,Thanet District Council,27/05/2015,385226,622.22,,British Telecommunications Plc,BTE005,Operational Services,Revenue,Communications & Computing,Ict,
http://thanet.gov.uk/supplierspend,Thanet District Council,27/05/2015,384038,6948.75,,Canterbury City Council,CAN004,Community Services,Revenue,Agency Staff,Various Cats-Public Sector,
http://thanet.gov.uk/supplierspend,Thanet District Council,27/05/2015,384770,219.43,,Casement Signs And Traffic,CAS001,Operational Services,Revenue,"Repairs,  Alter & Mtce - Build",Street And Traffic Management,
http://thanet.gov.uk/supplierspend,Thanet District Council,27/05/2015,385529,650.00,,Chaudry & Son Property Ltd,CHA065,Community Services,Revenue,Grants & Subscriptions,Rent Allowances,
http://thanet.gov.uk/supplierspend,Thanet District Council,27/05/2015,385234,2922.00,,Circus 2000 Ltd,CIR005,Community Services,Revenue,Services,Arts And Leisure Services,
http://thanet.gov.uk/supplierspend,Thanet District Council,27/05/2015,385182,2500.00,,Colliers Int Prop Advisors Uk Llp,COL033,Corporate Resources and S151,Balance Sheet,Other Land And Buildings-Hra,Legal Services,
http://thanet.gov.uk/supplierspend,Thanet District Council,27/05/2015,384557,275.00,,Commercial Services Trading Ltd,COM048,Operational Services,Revenue,Cont Hire & Operating Lease,Various Cats-Public Sector,
http://thanet.gov.uk/supplierspend,Thanet District Council,27/05/2015,384930,3854.64,,Commercial Services Trading Ltd,COM048,Operational Services,Revenue,Cont Hire & Operating Lease,Various Cats-Public Sector,
http://thanet.gov.uk/supplierspend,Thanet District Council,27/05/2015,384992,-1499.38,,Commercial Services Trading Ltd,COM048,Operational Services,Revenue,Cont Hire & Operating Lease,Various Cats-Public Sector,
http://thanet.gov.uk/supplierspend,Thanet District Council,27/05/2015,385492,992584.55,,Coombs (Canterbury) Ltd,COO033,Corporate Resources and S151,Balance Sheet,Other Land And Buildings-Hra,Construction-Repair And Maint,
http://thanet.gov.uk/supplierspend,Thanet District Council,27/05/2015,385527,3750.00,,Daedalus Environmental Ltd,DAE001,Community Services,Revenue,Services,Consultancy,
http://thanet.gov.uk/supplierspend,Thanet District Council,27/05/2015,385331,500.00,,David Forsdick Qc,FOR020,Corporate Resources and S151,Balance Sheet,Other Land And Buildings-Hra,Legal Services,
http://thanet.gov.uk/supplierspend,Thanet District Council,27/05/2015,384545,481.00,,Delphine Houlton Pr & Media Relations,HOU015,Community Services,Revenue,Services,Arts And Leisure Services,
http://thanet.gov.uk/supplierspend,Thanet District Council,27/05/2015,384354,660.00,,Disclosure And Barring Service,DIS017,Community Services,Revenue,"Equip, Furniture And Materials",Human Resources,
http://thanet.gov.uk/supplierspend,Thanet District Council,27/05/2015,385254,41041.21,,Dover District Council,DOV001,Corporate Resources and S151,Revenue,Services,Various Cats-Public Sector,
http://thanet.gov.uk/supplierspend,Thanet District Council,27/05/2015,384917,631.00,,E Saunders Margate Ltd,SAU001,Corporate Resources and S151,Balance Sheet,Repairs And Mtce Holding A/C,Construction-Repair And Maint,
http://thanet.gov.uk/supplierspend,Thanet District Council,27/05/2015,385355,1802.60,,Fairhaven Stone Ltd,FAI009,Community Services,Revenue,"Repairs,  Alter & Mtce - Build",Cemetery And Crematorium,
http://thanet.gov.uk/supplierspend,Thanet District Council,27/05/2015,384772,788.50,,Frandham Boarding Kennels,FRA010,Operational Services,Revenue,Services,Environmental Services,
http://thanet.gov.uk/supplierspend,Thanet District Council,27/05/2015,385010,300.00,,Freeflow Limited,FRE010,Operational Services,Revenue,"Repairs,  Alter & Mtce - Build",Building Construction Material,
http://thanet.gov.uk/supplierspend,Thanet District Council,27/05/2015,385011,300.00,,Freeflow Limited,FRE010,Operational Services,Revenue,"Repairs,  Alter & Mtce - Build",Building Construction Material,
http://thanet.gov.uk/supplierspend,Thanet District Council,27/05/2015,384329,9900.00,,Gatenbysanderson Ltd,GAT002,Corporate Resources and S151,Revenue,Services,Human Resources,
http://thanet.gov.uk/supplierspend,Thanet District Council,27/05/2015,384876,71697.50,,Homes & Communities Agency,HOM013,Corporate Resources and S151,Balance Sheet,Hca Grant Funded Projects,Government Agencies,
http://thanet.gov.uk/supplierspend,Thanet District Council,27/05/2015,385357,309.40,,Hr Go Recruitment Ltd,HRG002,Community Services,Revenue,Agency Staff,Human Resources,
http://thanet.gov.uk/supplierspend,Thanet District Council,27/05/2015,385310,440.00,,J Redpath Buchanan & Co Ltd,RED001,Corporate Resources and S151,Balance Sheet,Repairs And Mtce Holding A/C,Building Construction Material,
http://thanet.gov.uk/supplierspend,Thanet District Council,27/05/2015,385311,520.00,,J Redpath Buchanan & Co Ltd,RED001,Corporate Resources and S151,Balance Sheet,Repairs And Mtce Holding A/C,Building Construction Material,
http://thanet.gov.uk/supplierspend,Thanet District Council,27/05/2015,385312,555.00,,J Redpath Buchanan & Co Ltd,RED001,Corporate Resources and S151,Balance Sheet,Repairs And Mtce Holding A/C,Building Construction Material,
http://thanet.gov.uk/supplierspend,Thanet District Council,27/05/2015,385313,310.00,,J Redpath Buchanan & Co Ltd,RED001,Corporate Resources and S151,Balance Sheet,Repairs And Mtce Holding A/C,Building Construction Material,
http://thanet.gov.uk/supplierspend,Thanet District Council,27/05/2015,385314,545.00,,J Redpath Buchanan & Co Ltd,RED001,Corporate Resources and S151,Balance Sheet,Repairs And Mtce Holding A/C,Building Construction Material,
http://thanet.gov.uk/supplierspend,Thanet District Council,27/05/2015,384878,20012.51,,J Rospo Building Contractors,ROS001,Corporate Resources and S151,Balance Sheet,Rechargeable Works,Construction-Repair And Maint,
http://thanet.gov.uk/supplierspend,Thanet District Council,27/05/2015,384976,4026.24,,J Rospo Building Contractors,ROS001,Corporate Resources and S151,Balance Sheet,Rechargeable Works,Construction-Repair And Maint,
http://thanet.gov.uk/supplierspend,Thanet District Council,27/05/2015,385530,586.62,,John Gale,GAL001,Corporate Resources and S151,Balance Sheet,Capital Exp-Non Council Assets,Grants,
http://thanet.gov.uk/supplierspend,Thanet District Council,27/05/2015,384905,1200.00,,Jump It Recruitment Solutions Ltd,JUM001,East Kent Shared Services,Revenue,Agency Staff,Human Resources,
http://thanet.gov.uk/supplierspend,Thanet District Council,27/05/2015,384906,2751.25,,Jump It Recruitment Solutions Ltd,JUM001,East Kent Shared Services,Revenue,Agency Staff,Human Resources,
http://thanet.gov.uk/supplierspend,Thanet District Council,27/05/2015,385390,817.45,,Kelway Ltd,KEL003,Community Services,Revenue,Communications & Computing,Ict,
http://thanet.gov.uk/supplierspend,Thanet District Council,27/05/2015,385184,60000.00,,Kent County Council,KCC002,East Kent Shared Services,Revenue,Communications & Computing,Various Cats-Public Sector,
http://thanet.gov.uk/supplierspend,Thanet District Council,27/05/2015,384745,1933.70,,Kent County Council (Kcs),KCC003,Operational Services,Revenue,Direct Transport Costs,Facilities And Mangement Serv,
http://thanet.gov.uk/supplierspend,Thanet District Council,27/05/2015,384782,480.60,,Kent County Council (Kcs),KCC003,Operational Services,Revenue,Energy Costs,Facilities And Mangement Serv,
http://thanet.gov.uk/supplierspend,Thanet District Council,27/05/2015,384785,1196.12,,Kent County Council (Kcs),KCC003,Community Services,Revenue,Energy Costs,Facilities And Mangement Serv,
http://thanet.gov.uk/supplierspend,Thanet District Council,27/05/2015,384787,859.86,,Kent County Council (Kcs),KCC003,Community Services,Revenue,Energy Costs,Facilities And Mangement Serv,
http://thanet.gov.uk/supplierspend,Thanet District Council,27/05/2015,384789,858.76,,Kent County Council (Kcs),KCC003,Community Services,Revenue,Energy Costs,Facilities And Mangement Serv,
http://thanet.gov.uk/supplierspend,Thanet District Council,27/05/2015,384791,1787.06,,Kent County Council (Kcs),KCC003,Operational Services,Revenue,Energy Costs,Facilities And Mangement Serv,
http://thanet.gov.uk/supplierspend,Thanet District Council,27/05/2015,384965,1229.10,,Kent County Council (Kcs),KCC003,Operational Services,Revenue,Energy Costs,Facilities And Mangement Serv,
http://thanet.gov.uk/supplierspend,Thanet District Council,27/05/2015,384967,1215.05,,Kent County Council (Kcs),KCC003,Operational Services,Revenue,Energy Costs,Facilities And Mangement Serv,
http://thanet.gov.uk/supplierspend,Thanet District Council,27/05/2015,384971,245.81,,Kent County Council (Kcs),KCC003,Community Services,Revenue,"Equip, Furniture And Materials",Facilities And Mangement Serv,
http://thanet.gov.uk/supplierspend,Thanet District Council,27/05/2015,384902,1900.00,,Kpmg Llp Fees Account,KPM001,Corporate Resources and S151,Revenue,Services,Financial Services,
http://thanet.gov.uk/supplierspend,Thanet District Council,27/05/2015,385326,381.02,,L W Burt & Son Ltd,BUR027,Community Services,Revenue,"Repairs,  Alter & Mtce - Build",Construction-Repair And Maint,
http://thanet.gov.uk/supplierspend,Thanet District Council,27/05/2015,383514,1122.00,,Lexisnexis Uk,LEX002,Community Services,Revenue,"Print, Stat And Gen Off Exps",Human Resources,
http://thanet.gov.uk/supplierspend,Thanet District Council,27/05/2015,383530,-304.00,,Lexisnexis Uk,LEX002,Community Services,Revenue,"Print, Stat And Gen Off Exps",Human Resources,
http://thanet.gov.uk/supplierspend,Thanet District Council,27/05/2015,385528,304.00,,Lexisnexis Uk,LEX002,Community Services,Revenue,"Print, Stat And Gen Off Exps",Human Resources,
http://thanet.gov.uk/supplierspend,Thanet District Council,27/05/2015,384156,1271.10,,Lobster Van Hire Ltd,LOB001,Corporate Resources and S151,Revenue,Cont Hire & Operating Lease,Vehicle Management,
http://thanet.gov.uk/supplierspend,Thanet District Council,27/05/2015,385000,2010.36,,Local Government Association,LGA001,Community Services,Revenue,Services,Various Categories,
http://thanet.gov.uk/supplierspend,Thanet District Council,27/05/2015,385287,1008.00,,Lone Worker Solutions Limited,LON033,East Kent Shared Services,Revenue,Communications & Computing,Ict,
http://thanet.gov.uk/supplierspend,Thanet District Council,27/05/2015,385178,399.40,,Lyreco Uk Limited,LYR001,Community Services,Revenue,"Print, Stat And Gen Off Exps",Stationery,
http://thanet.gov.uk/supplierspend,Thanet District Council,27/05/2015,384897,560.00,,M D Electrics,MDE001,Community Services,Revenue,"Repairs,  Alter & Mtce - Build",Building Construction Material,
http://thanet.gov.uk/supplierspend,Thanet District Council,27/05/2015,385001,320.00,,M D Electrics,MDE001,Community Services,Revenue,"Repairs,  Alter & Mtce - Build",Building Construction Material,
http://thanet.gov.uk/supplierspend,Thanet District Council,27/05/2015,384814,3295.00,,Mag:Net Solutions Limited,MAG005,East Kent Shared Services,Revenue,Services,Ict,
http://thanet.gov.uk/supplierspend,Thanet District Council,27/05/2015,385521,4000.00,,Margate Town Team Cic,MTO001,Operational Services,Revenue,Services,Grants,
http://thanet.gov.uk/supplierspend,Thanet District Council,27/05/2015,385246,300.00,,Maxwells Grounds Maintenance Ltd,MAX002,Community Services,Revenue,"Repairs,  Alter & Mtce - Build",Construction-Repair And Maint,
http://thanet.gov.uk/supplierspend,Thanet District Council,27/05/2015,384388,28975.29,,Mears Ltd,MEA003,Corporate Resources and S151,Balance Sheet,Repairs And Mtce Holding A/C,Construction-Repair And Maint,
http://thanet.gov.uk/supplierspend,Thanet District Council,27/05/2015,384551,19743.16,,Mears Ltd,MEA003,Corporate Resources and S151,Balance Sheet,Repairs And Mtce Holding A/C,Construction-Repair And Maint,
http://thanet.gov.uk/supplierspend,Thanet District Council,27/05/2015,384780,1544.33,,Mears Ltd,MEA003,Community Services,Revenue,"Repairs,  Alter & Mtce - Build",Construction-Repair And Maint,
http://thanet.gov.uk/supplierspend,Thanet District Council,27/05/2015,384795,412.91,,Mears Ltd,MEA003,Corporate Resources and S151,Balance Sheet,Repairs And Mtce Holding A/C,Construction-Repair And Maint,
http://thanet.gov.uk/supplierspend,Thanet District Council,27/05/2015,384796,39197.59,,Mears Ltd,MEA003,Corporate Resources and S151,Balance Sheet,Repairs And Mtce Holding A/C,Construction-Repair And Maint,
http://thanet.gov.uk/supplierspend,Thanet District Council,27/05/2015,384797,11029.48,,Mears Ltd,MEA003,Corporate Resources and S151,Balance Sheet,Repairs And Mtce Holding A/C,Construction-Repair And Maint,
http://thanet.gov.uk/supplierspend,Thanet District Council,27/05/2015,384798,15802.86,,Mears Ltd,MEA003,Corporate Resources and S151,Balance Sheet,Repairs And Mtce Holding A/C,Construction-Repair And Maint,
http://thanet.gov.uk/supplierspend,Thanet District Council,27/05/2015,384894,101199.36,,Mears Ltd,MEA003,Community Services,Revenue,"Repairs,  Alter & Mtce - Build",Construction-Repair And Maint,
http://thanet.gov.uk/supplierspend,Thanet District Council,27/05/2015,384895,2065.39,,Mears Ltd,MEA003,Community Services,Revenue,"Repairs,  Alter & Mtce - Build",Construction-Repair And Maint,
http://thanet.gov.uk/supplierspend,Thanet District Council,27/05/2015,384896,1973.65,,Mears Ltd,MEA003,Community Services,Revenue,"Repairs,  Alter & Mtce - Build",Construction-Repair And Maint,
http://thanet.gov.uk/supplierspend,Thanet District Council,27/05/2015,384959,4914.67,,Mears Ltd,MEA003,Community Services,Revenue,"Repairs,  Alter & Mtce - Build",Construction-Repair And Maint,
http://thanet.gov.uk/supplierspend,Thanet District Council,27/05/2015,385289,7749.58,,Mears Ltd,MEA003,Corporate Resources and S151,Balance Sheet,Repairs And Mtce Holding A/C,Construction-Repair And Maint,
http://thanet.gov.uk/supplierspend,Thanet District Council,27/05/2015,385290,340.08,,Mears Ltd,MEA003,Corporate Resources and S151,Balance Sheet,Repairs And Mtce Holding A/C,Construction-Repair And Maint,
http://thanet.gov.uk/supplierspend,Thanet District Council,27/05/2015,385291,6958.09,,Mears Ltd,MEA003,Corporate Resources and S151,Balance Sheet,Repairs And Mtce Holding A/C,Construction-Repair And Maint,
http://thanet.gov.uk/supplierspend,Thanet District Council,27/05/2015,385181,4320.00,,Michael Page Int Recruitment Ltd,PAG008,Corporate Resources and S151,Revenue,Services,Human Resources,
http://thanet.gov.uk/supplierspend,Thanet District Council,27/05/2015,385279,1440.00,,Michael Page Int Recruitment Ltd,PAG008,Corporate Resources and S151,Revenue,Services,Human Resources,
http://thanet.gov.uk/supplierspend,Thanet District Council,27/05/2015,384472,557.55,,Morgan Jones Ltd,MOR001,Community Services,Revenue,Services,Human Resources,
http://thanet.gov.uk/supplierspend,Thanet District Council,27/05/2015,384908,406.35,,Morgan Jones Ltd,MOR001,Community Services,Revenue,Services,Human Resources,
http://thanet.gov.uk/supplierspend,Thanet District Council,27/05/2015,385005,230.00,,Mrs K Hooper,HOO004,Chief Executive,Revenue,Agency Staff,Consultancy,
http://thanet.gov.uk/supplierspend,Thanet District Council,27/05/2015,385005,830.00,,Mrs K Hooper,HOO004,Chief Executive,Revenue,Services,Consultancy,
http://thanet.gov.uk/supplierspend,Thanet District Council,27/05/2015,385006,340.00,,Mrs K Hooper,HOO004,Chief Executive,Revenue,Agency Staff,Consultancy,
http://thanet.gov.uk/supplierspend,Thanet District Council,27/05/2015,385319,1400.00,,New Approach Contractors Ltd,NEW037,Operational Services,Revenue,"Repairs,  Alter & Mtce - Build",Construction-Repair And Maint,
http://thanet.gov.uk/supplierspend,Thanet District Council,27/05/2015,385320,2600.00,,New Approach Contractors Ltd,NEW037,Operational Services,Revenue,"Repairs,  Alter & Mtce - Build",Construction-Repair And Maint,
http://thanet.gov.uk/supplierspend,Thanet District Council,27/05/2015,384799,3559.70,,New Tech Security Ltd,NEW027,Community Services,Revenue,"Repairs,  Alter & Mtce - Build",Facilities And Mangement Serv,
http://thanet.gov.uk/supplierspend,Thanet District Council,27/05/2015,384761,390.00,,Ovenden Tipper Services Ltd,OVE001,Operational Services,Revenue,Private Contractors,Vehicle Management,
http://thanet.gov.uk/supplierspend,Thanet District Council,27/05/2015,384928,300.00,,Paul Amos,AMO002,Operational Services,Revenue,"Repairs,  Alter & Mtce - Build",Construction-Repair And Maint,
http://thanet.gov.uk/supplierspend,Thanet District Council,27/05/2015,384927,283.50,,Phillips Blinds,PHI002,Operational Services,Revenue,"Equip, Furniture And Materials",Facilities And Mangement Serv,
http://thanet.gov.uk/supplierspend,Thanet District Council,27/05/2015,385412,5005.00,,Pinsent Masons,PIN007,Corporate Resources and S151,Revenue,Services,Legal Services,
http://thanet.gov.uk/supplierspend,Thanet District Council,27/05/2015,384364,724.47,,Ppg Arch Coatings Uk Ltd,PPG001,Operational Services,Revenue,"Equip, Furniture And Materials",Building Construction Material,
http://thanet.gov.uk/supplierspend,Thanet District Council,27/05/2015,385286,220.44,,Probrand Ltd,PRO012,Corporate Resources and S151,Revenue,Communications & Computing,Ict,
http://thanet.gov.uk/supplierspend,Thanet District Council,27/05/2015,384333,822.50,,R Cannon,CAN007,Operational Services,Revenue,Services,Maritime Services,
http://thanet.gov.uk/supplierspend,Thanet District Council,27/05/2015,384957,490.00,,R Cannon,CAN007,Operational Services,Revenue,Services,Maritime Services,
http://thanet.gov.uk/supplierspend,Thanet District Council,27/05/2015,384804,5190.49,,Royal Mail,ROY004,Community Services,Revenue,Communications & Computing,Mail Services,
http://thanet.gov.uk/supplierspend,Thanet District Council,27/05/2015,385262,2565.22,,Royal Mail,ROY004,Community Services,Revenue,Communications & Computing,Mail Services,
http://thanet.gov.uk/supplierspend,Thanet District Council,27/05/2015,384756,63661.00,,Royal National Lifeboat Institution,RNL002,Operational Services,Revenue,Services,Arts And Leisure Services,
http://thanet.gov.uk/supplierspend,Thanet District Council,27/05/2015,385330,2884.00,,Sharpe Pritchard Llp,SHA030,Corporate Resources and S151,Balance Sheet,Other Land And Buildings-Hra,Legal Services,
http://thanet.gov.uk/supplierspend,Thanet District Council,27/05/2015,384771,1120.00,,Sjr Pm Solutions Limited,SJR001,East Kent Shared Services,Revenue,Services,Ict,
http://thanet.gov.uk/supplierspend,Thanet District Council,27/05/2015,385189,1400.00,,Sjr Pm Solutions Limited,SJR001,East Kent Shared Services,Revenue,Services,Ict,
http://thanet.gov.uk/supplierspend,Thanet District Council,27/05/2015,384718,273.20,,Southern Electric,SEL007,Operational Services,Revenue,Energy Costs,Utilities,
http://thanet.gov.uk/supplierspend,Thanet District Council,27/05/2015,384719,223.06,,Southern Electric,SEL007,Operational Services,Revenue,Energy Costs,Utilities,
http://thanet.gov.uk/supplierspend,Thanet District Council,27/05/2015,384731,4.72,,Southern Electric,SEL007,Community Services,Revenue,Energy Costs,Utilities,
http://thanet.gov.uk/supplierspend,Thanet District Council,27/05/2015,384731,491.13,,Southern Electric,SEL007,Operational Services,Revenue,Energy Costs,Utilities,
http://thanet.gov.uk/supplierspend,Thanet District Council,27/05/2015,384940,2341.36,,Southern Water,SWA001,Operational Services,Revenue,Water Services,Utilities,
http://thanet.gov.uk/supplierspend,Thanet District Council,27/05/2015,384978,733.79,,Southern Water,SWA001,Operational Services,Revenue,Water Services,Utilities,
http://thanet.gov.uk/supplierspend,Thanet District Council,27/05/2015,384979,395.42,,Southern Water,SWA001,Community Services,Revenue,Water Services,Utilities,
http://thanet.gov.uk/supplierspend,Thanet District Council,27/05/2015,384980,788.57,,Southern Water,SWA001,Operational Services,Revenue,Water Services,Utilities,
http://thanet.gov.uk/supplierspend,Thanet District Council,27/05/2015,384982,2288.51,,Southern Water,SWA001,Operational Services,Revenue,Water Services,Utilities,
http://thanet.gov.uk/supplierspend,Thanet District Council,27/05/2015,384983,582.21,,Southern Water,SWA001,Operational Services,Revenue,Water Services,Utilities,
http://thanet.gov.uk/supplierspend,Thanet District Council,27/05/2015,384985,748.14,,Southern Water,SWA001,Operational Services,Revenue,Water Services,Utilities,
http://thanet.gov.uk/supplierspend,Thanet District Council,27/05/2015,384760,253.38,,Spaldings  Ltd,SPA006,Operational Services,Revenue,"Equip, Furniture And Materials",Horticultural,
http://thanet.gov.uk/supplierspend,Thanet District Council,27/05/2015,384058,1427.68,,Swale Heating Ltd,SWA006,Corporate Resources and S151,Balance Sheet,Repairs And Mtce Holding A/C,Building Construction Material,
http://thanet.gov.uk/supplierspend,Thanet District Council,27/05/2015,384059,1558.30,,Swale Heating Ltd,SWA006,Corporate Resources and S151,Balance Sheet,Repairs And Mtce Holding A/C,Building Construction Material,
http://thanet.gov.uk/supplierspend,Thanet District Council,27/05/2015,384060,2089.89,,Swale Heating Ltd,SWA006,Corporate Resources and S151,Balance Sheet,Repairs And Mtce Holding A/C,Building Construction Material,
http://thanet.gov.uk/supplierspend,Thanet District Council,27/05/2015,384061,1689.93,,Swale Heating Ltd,SWA006,Corporate Resources and S151,Balance Sheet,Repairs And Mtce Holding A/C,Building Construction Material,
http://thanet.gov.uk/supplierspend,Thanet District Council,27/05/2015,384062,1558.30,,Swale Heating Ltd,SWA006,Corporate Resources and S151,Balance Sheet,Repairs And Mtce Holding A/C,Building Construction Material,
http://thanet.gov.uk/supplierspend,Thanet District Council,27/05/2015,384063,1695.00,,Swale Heating Ltd,SWA006,Corporate Resources and S151,Balance Sheet,Repairs And Mtce Holding A/C,Building Construction Material,
http://thanet.gov.uk/supplierspend,Thanet District Council,27/05/2015,384064,1689.93,,Swale Heating Ltd,SWA006,Corporate Resources and S151,Balance Sheet,Repairs And Mtce Holding A/C,Building Construction Material,
http://thanet.gov.uk/supplierspend,Thanet District Council,27/05/2015,384065,1745.62,,Swale Heating Ltd,SWA006,Corporate Resources and S151,Balance Sheet,Repairs And Mtce Holding A/C,Building Construction Material,
http://thanet.gov.uk/supplierspend,Thanet District Council,27/05/2015,384066,1558.30,,Swale Heating Ltd,SWA006,Corporate Resources and S151,Balance Sheet,Repairs And Mtce Holding A/C,Building Construction Material,
http://thanet.gov.uk/supplierspend,Thanet District Council,27/05/2015,384067,1826.63,,Swale Heating Ltd,SWA006,Corporate Resources and S151,Balance Sheet,Repairs And Mtce Holding A/C,Building Construction Material,
http://thanet.gov.uk/supplierspend,Thanet District Council,27/05/2015,384068,1558.30,,Swale Heating Ltd,SWA006,Corporate Resources and S151,Balance Sheet,Repairs And Mtce Holding A/C,Building Construction Material,
http://thanet.gov.uk/supplierspend,Thanet District Council,27/05/2015,384069,1689.93,,Swale Heating Ltd,SWA006,Corporate Resources and S151,Balance Sheet,Repairs And Mtce Holding A/C,Building Construction Material,
http://thanet.gov.uk/supplierspend,Thanet District Council,27/05/2015,384070,1927.88,,Swale Heating Ltd,SWA006,Corporate Resources and S151,Balance Sheet,Repairs And Mtce Holding A/C,Building Construction Material,
http://thanet.gov.uk/supplierspend,Thanet District Council,27/05/2015,384071,1558.30,,Swale Heating Ltd,SWA006,Corporate Resources and S151,Balance Sheet,Repairs And Mtce Holding A/C,Building Construction Material,
http://thanet.gov.uk/supplierspend,Thanet District Council,27/05/2015,384072,2011.87,,Swale Heating Ltd,SWA006,Corporate Resources and S151,Balance Sheet,Repairs And Mtce Holding A/C,Building Construction Material,
http://thanet.gov.uk/supplierspend,Thanet District Council,27/05/2015,384073,1883.32,,Swale Heating Ltd,SWA006,Corporate Resources and S151,Balance Sheet,Repairs And Mtce Holding A/C,Building Construction Material,
http://thanet.gov.uk/supplierspend,Thanet District Council,27/05/2015,384074,1826.63,,Swale Heating Ltd,SWA006,Corporate Resources and S151,Balance Sheet,Repairs And Mtce Holding A/C,Building Construction Material,
http://thanet.gov.uk/supplierspend,Thanet District Council,27/05/2015,384075,1826.63,,Swale Heating Ltd,SWA006,Corporate Resources and S151,Balance Sheet,Repairs And Mtce Holding A/C,Building Construction Material,
http://thanet.gov.uk/supplierspend,Thanet District Council,27/05/2015,384076,1689.93,,Swale Heating Ltd,SWA006,Corporate Resources and S151,Balance Sheet,Repairs And Mtce Holding A/C,Building Construction Material,
http://thanet.gov.uk/supplierspend,Thanet District Council,27/05/2015,384077,2054.50,,Swale Heating Ltd,SWA006,Corporate Resources and S151,Balance Sheet,Repairs And Mtce Holding A/C,Building Construction Material,
http://thanet.gov.uk/supplierspend,Thanet District Council,27/05/2015,384086,2135.46,,Swale Heating Ltd,SWA006,Corporate Resources and S151,Balance Sheet,Repairs And Mtce Holding A/C,Building Construction Material,
http://thanet.gov.uk/supplierspend,Thanet District Council,27/05/2015,384087,1558.30,,Swale Heating Ltd,SWA006,Corporate Resources and S151,Balance Sheet,Repairs And Mtce Holding A/C,Building Construction Material,
http://thanet.gov.uk/supplierspend,Thanet District Council,27/05/2015,384088,1470.20,,Swale Heating Ltd,SWA006,Corporate Resources and S151,Balance Sheet,Repairs And Mtce Holding A/C,Building Construction Material,
http://thanet.gov.uk/supplierspend,Thanet District Council,27/05/2015,384089,1826.63,,Swale Heating Ltd,SWA006,Corporate Resources and S151,Balance Sheet,Repairs And Mtce Holding A/C,Building Construction Material,
http://thanet.gov.uk/supplierspend,Thanet District Council,27/05/2015,384090,1963.33,,Swale Heating Ltd,SWA006,Corporate Resources and S151,Balance Sheet,Repairs And Mtce Holding A/C,Building Construction Material,
http://thanet.gov.uk/supplierspend,Thanet District Council,27/05/2015,384091,1558.30,,Swale Heating Ltd,SWA006,Corporate Resources and S151,Balance Sheet,Repairs And Mtce Holding A/C,Building Construction Material,
http://thanet.gov.uk/supplierspend,Thanet District Council,27/05/2015,384092,2011.87,,Swale Heating Ltd,SWA006,Corporate Resources and S151,Balance Sheet,Repairs And Mtce Holding A/C,Building Construction Material,
http://thanet.gov.uk/supplierspend,Thanet District Council,27/05/2015,384093,1427.68,,Swale Heating Ltd,SWA006,Corporate Resources and S151,Balance Sheet,Repairs And Mtce Holding A/C,Building Construction Material,
http://thanet.gov.uk/supplierspend,Thanet District Council,27/05/2015,384094,2199.64,,Swale Heating Ltd,SWA006,Corporate Resources and S151,Balance Sheet,Repairs And Mtce Holding A/C,Building Construction Material,
http://thanet.gov.uk/supplierspend,Thanet District Council,27/05/2015,384095,1689.93,,Swale Heating Ltd,SWA006,Corporate Resources and S151,Balance Sheet,Repairs And Mtce Holding A/C,Building Construction Material,
http://thanet.gov.uk/supplierspend,Thanet District Council,27/05/2015,384096,1892.44,,Swale Heating Ltd,SWA006,Corporate Resources and S151,Balance Sheet,Repairs And Mtce Holding A/C,Building Construction Material,
http://thanet.gov.uk/supplierspend,Thanet District Council,27/05/2015,384297,1507.22,,Swale Heating Ltd,SWA006,Corporate Resources and S151,Balance Sheet,Repairs And Mtce Holding A/C,Building Construction Material,
http://thanet.gov.uk/supplierspend,Thanet District Council,27/05/2015,384441,25133.94,,Swale Heating Ltd,SWA006,Corporate Resources and S151,Balance Sheet,Repairs And Mtce Holding A/C,Building Construction Material,
http://thanet.gov.uk/supplierspend,Thanet District Council,27/05/2015,385019,468.69,,Swann Of York Limited,SWA009,Community Services,Revenue,"Equip, Furniture And Materials",Stationery,
http://thanet.gov.uk/supplierspend,Thanet District Council,27/05/2015,384950,1395.82,,The Glenwood Hotel,GLE007,Community Services,Revenue,Services,Housing Management,
http://thanet.gov.uk/supplierspend,Thanet District Council,27/05/2015,385426,8875.00,,Toby Watkin,WAT022,Corporate Resources and S151,Balance Sheet,Other Land And Buildings-Hra,Legal Services,
http://thanet.gov.uk/supplierspend,Thanet District Council,27/05/2015,382972,28863.55,,Trowers & Hamlins,TRO001,Corporate Resources and S151,Balance Sheet,Other Land And Buildings-Hra,Legal Services,
http://thanet.gov.uk/supplierspend,Thanet District Council,27/05/2015,382978,4891.95,,Trowers & Hamlins,TRO001,Corporate Resources and S151,Balance Sheet,Other Land And Buildings-Hra,Legal Services,
http://thanet.gov.uk/supplierspend,Thanet District Council,27/05/2015,382980,16354.90,,Trowers & Hamlins,TRO001,Corporate Resources and S151,Balance Sheet,Other Land And Buildings-Hra,Legal Services,
http://thanet.gov.uk/supplierspend,Thanet District Council,27/05/2015,384970,638.00,,Viatec (Uk) Limited,VIA002,Operational Services,Revenue,"Equip, Furniture And Materials",Construction-Repair And Maint,
http://thanet.gov.uk/supplierspend,Thanet District Council,27/05/2015,384807,269.28,,Viridor Waste Management Ltd,VIR003,Community Services,Revenue,Private Contractors,Environmental Services,
http://thanet.gov.uk/supplierspend,Thanet District Council,27/05/2015,385012,25000.00,,Visit Kent Ltd,VIS005,Community Services,Revenue,Miscellaneous Expenses,Arts And Leisure Services,
http://thanet.gov.uk/supplierspend,Thanet District Council,27/05/2015,385013,5721.65,,Visit Kent Ltd,VIS005,Community Services,Revenue,Grants & Subscriptions,Arts And Leisure Services,
http://thanet.gov.uk/supplierspend,Thanet District Council,27/05/2015,385421,2600.00,,W D Milne Limited,MIL043,Corporate Resources and S151,Revenue,Services,Legal Services,
http://thanet.gov.uk/supplierspend,Thanet District Council,27/05/2015,384744,350.00,,Walker Construction (Uk) Ltd,WAL001,Operational Services,Revenue,Training,Construction-Repair And Maint,
http://thanet.gov.uk/supplierspend,Thanet District Council,27/05/2015,384870,995.00,,Wallace Print Limited,WAL034,Corporate Resources and S151,Revenue,"Print, Stat And Gen Off Exps",Facilities And Mangement Serv,
http://thanet.gov.uk/supplierspend,Thanet District Council,27/05/2015,384987,3000.00,,West Kent Housing Association,WES025,Community Services,Revenue,Grants & Subscriptions,Financial Services,
http://thanet.gov.uk/supplierspend,Thanet District Council,27/05/2015,384743,562.00,,Westbury Industrial Supplies Ltd,WES042,Operational Services,Revenue,"Clothes, Uniforms & Laundry",Clothing,
http://thanet.gov.uk/supplierspend,Thanet District Council,27/05/2015,384774,480.00,,Windridge Coatings Ltd,WIN005,Operational Services,Revenue,"Equip, Furniture And Materials",Horticultural,
http://thanet.gov.uk/supplierspend,Thanet District Council,27/05/2015,384801,970.00,,Zebra Training Services Limited,ZEB001,East Kent Shared Services,Revenue,Training,Human Resources,
http://thanet.gov.uk/supplierspend,Thanet District Council,28/05/2015,385766,1467.34,,Co-Operative Bank Paypoint,COO018,Corporate Resources and S151,Revenue,Services,Financial Services,
http://thanet.gov.uk/supplierspend,Thanet District Council,28/05/2015,385766,489.11,,Co-Operative Bank Paypoint,COO018,Community Services,Revenue,Services,Financial Services,
http://thanet.gov.uk/supplierspend,Thanet District Council,28/05/2015,385747,278477.19,,Maidstone Borough Council,MAI002,Corporate Resources and S151,Balance Sheet,Collection Fund - Business Rates,Various Cats-Public Sector,
http://thanet.gov.uk/supplierspend,Thanet District Council,28/05/2015,385747,769948.20,,Maidstone Borough Council,MAI002,Corporate Resources and S151,Balance Sheet,Revenue Financing,Various Cats-Public Sector,
http://thanet.gov.uk/supplierspend,Thanet District Council,28/05/2015,385778,361599.00,,Moore Blatch LLP (Client Account),MOO010,Corporate Resources and S151,Balance Sheet,Other Land And Buildings-Hra,Non Trade Payee,
http://thanet.gov.uk/supplierspend,Thanet District Council,28/05/2015,385767,266.67,,Nat West Bank,NWE001,Corporate Resources and S151,Revenue,Services,Various Categories,
http://thanet.gov.uk/supplierspend,Thanet District Council,28/05/2015,385757,960035.60,,Public Works Loan Board,PWL001,Corporate Resources and S151,Balance Sheet,Borrowing Repayable>1 Yr,Investments And Loans,
http://thanet.gov.uk/supplierspend,Thanet District Council,28/05/2015,385757,13200.49,,Public Works Loan Board,PWL001,Corporate Resources and S151,Balance Sheet,Debit Interest And Expenses,Investments And Loans,
http://thanet.gov.uk/supplierspend,Thanet District Council,28/05/2015,385779,196428.57,,Public Works Loan Board,PWL001,Corporate Resources and S151,Balance Sheet,Borrowing Repayable>1 Yr,Investments And Loans,
http://thanet.gov.uk/supplierspend,Thanet District Council,28/05/2015,385779,28467.86,,Public Works Loan Board,PWL001,Corporate Resources and S151,Balance Sheet,Debit Interest And Expenses,Investments And Loans,
http://thanet.gov.uk/supplierspend,Thanet District Council,28/05/2015,385755,168050.60,,REDACTED COMMERCIAL CONFIDENTIALITY,N/A,Corporate Resources and S151,Balance Sheet,Provisions- Future Settlement,Legal Services,
http://thanet.gov.uk/supplierspend,Thanet District Council,28/05/2015,385768,1884.43,,Santander ,SAN017,Corporate Resources and S151,Revenue,Services,Various Categories,
http://thanet.gov.uk/supplierspend,Thanet District Council,28/05/2015,385768,628.15,,Santander ,SAN017,Community Services,Revenue,Services,Various Categories,
http://thanet.gov.uk/supplierspend,Thanet District Council,28/05/2015,385769,949.82,,Santander ,SAN017,Corporate Resources and S151,Revenue,Services,Various Categories,
http://thanet.gov.uk/supplierspend,Thanet District Council,28/05/2015,385775,-219955.00,,Secretary Of State,SEC003,Corporate Resources and S151,Revenue,Revenue Financing,Government Agencies,
http://thanet.gov.uk/supplierspend,Thanet District Council,28/05/2015,385775,1333956.00,,Secretary Of State,SEC003,Corporate Resources and S151,Balance Sheet,Collection Fund,Government Agencies,
http://thanet.gov.uk/supplierspend,Thanet District Council,28/05/2015,385762,1022.47,,Worldpay Ltd,WOR008,Corporate Resources and S151,Revenue,Services,Financial Services,
http://thanet.gov.uk/supplierspend,Thanet District Council,28/05/2015,385765,2817.35,,Worldpay Ltd,WOR008,Corporate Resources and S151,Revenue,Services,Financial Services,
http://thanet.gov.uk/supplierspend,Thanet District Council,28/05/2015,385772,3273.48,,Worldpay Ltd,WOR008,Corporate Resources and S151,Revenue,Services,Financial Services,
